Organisation Name,Effective Date,Purch Date,Directorate,Expense Area,Beneficiary,Net amount,    Tax,    Gross,G/L Acct Long Text,MCC Description
Buckinghamshire Council,30.11.2020,30.11.2020,Resources,Resources,OPTIMAL WORKSHOP,154.26,0,154.26,Computer Consumables,Computer software stores
Buckinghamshire Council,30.11.2020,30.11.2020,Resources,Resources,LAND REGISTRY,3,0,3,Land Registry Fees,Government services
Buckinghamshire Council,30.11.2020,30.11.2020,Resources,Resources,LAND REGISTRY,3,0,3,Land Registry Fees,Government services
Buckinghamshire Council,30.11.2020,30.11.2020,Children's Services,Children's Services,AMZNMKTPLACE,16.99,0,16.99,Other Personal Needs,Miscellaneous retail
Buckinghamshire Council,30.11.2020,30.11.2020,Children's Services,Children's Services,TICKETS08712200260,44,0,44,Activities & General Recreation,Theatres and ticket agencies
Buckinghamshire Council,30.11.2020,30.11.2020,Deputy Chief Executive,Deputy Chief Executive,TESCO GIFT CARD,25,0,25,Awaiting Coding,Grocery stores
Buckinghamshire Council,30.11.2020,30.11.2020,Deputy Chief Executive,Deputy Chief Executive,WWW.THEGIFTCARDCENTRE.,499.95,0,499.95,Awaiting Coding,"Gift, card & novelty shops"
Buckinghamshire Council,30.11.2020,30.11.2020,Deputy Chief Executive,Deputy Chief Executive,WWW.THEGIFTCARDCENTRE.,484.95,0,484.95,Awaiting Coding,"Gift, card & novelty shops"
Buckinghamshire Council,30.11.2020,30.11.2020,Deputy Chief Executive,Deputy Chief Executive,HIGHSTREET VOUCHERS,20,0,20,Awaiting Coding,"Civic, social & fraternal associations"
Buckinghamshire Council,30.11.2020,30.11.2020,Communities,Communities,AMZNMKTPLACE,14.74,0,14.74,Other Equipment and Materials,Miscellaneous retail
Buckinghamshire Council,30.11.2020,30.11.2020,"Planning, Growth & Sustainability","Planning, Growth & Sustainability",RICS SUBS UK CYBS,658,0,658,Professional Subscriptions re Employees,Membership organisations
Buckinghamshire Council,30.11.2020,30.11.2020,Children's Services,Children's Services,HIGHWAY EXPRESS LIMITED,210,0,210,Court Orders Sec 31: Miscellaneous,Taxicabs & limousines
Buckinghamshire Council,30.11.2020,30.11.2020,Communities,Communities,AMZNMKTPLACE,133.79,0,133.79,Protective Clothing & Uniforms,Miscellaneous retail
Buckinghamshire Council,30.11.2020,30.11.2020,Communities,Communities,TESCO STORES,1.15,0,1.15,Purchase.of Refreshments and Food,Grocery stores
Buckinghamshire Council,30.11.2020,30.11.2020,Communities,Communities,FACEBK 9SCJYV6XA2,12.9,0,12.9,Advertising,Advertising services
Buckinghamshire Council,30.11.2020,30.11.2020,Adults and Health,"Adults, Health and Housing",TESCO STORES 2020,24.55,0,24.55,General Provisions (Food),Grocery stores
Buckinghamshire Council,30.11.2020,30.11.2020,Adults and Health,"Adults, Health and Housing",AMZ*SHOP IN & OUT,-29.95,0,-29.95,Health & Safety Supplies & Services,Miscellaneous retail
Buckinghamshire Council,30.11.2020,30.11.2020,Children's Services,Children's Services,ASDA SUPERSTORE,16.68,0,16.68,Awaiting Coding,Grocery stores
Buckinghamshire Council,30.11.2020,30.11.2020,Children's Services,Children's Services,ASDA SUPERSTORE,24.55,0,24.55,Awaiting Coding,Grocery stores
Buckinghamshire Council,30.11.2020,30.11.2020,Children's Services,Children's Services,ASDA SUPERSTORE,24.77,0,24.77,Awaiting Coding,Grocery stores
Buckinghamshire Council,30.11.2020,30.11.2020,Children's Services,Children's Services,ASDA SUPERSTORE,90.5,0,90.5,Awaiting Coding,Grocery stores
Buckinghamshire Council,30.11.2020,30.11.2020,Children's Services,Children's Services,ABC TAXIS,21,0,21,Accomm Children Sec 20: Trans to School,Taxicabs & limousines
Buckinghamshire Council,30.11.2020,30.11.2020,Children's Services,Children's Services,ABC TAXIS,21,0,21,Accomm Children Sec 20: Trans to School,Taxicabs & limousines
Buckinghamshire Council,30.11.2020,30.11.2020,Resources,Resources,GEN REGISTER OFFICE,14,0,14,Miscellaneous (Other)  Expenses,Government services
Buckinghamshire Council,30.11.2020,30.11.2020,Resources,Resources,BUCKINGHAMSHIRE COUNCIL,11,0,11,Miscellaneous (Other)  Expenses,Government services
Buckinghamshire Council,30.11.2020,30.11.2020,Deputy Chief Executive,Deputy Chief Executive,FACEBK P27GQXEPN2,241.49,0,241.49,Advertising,Advertising services
Buckinghamshire Council,30.11.2020,30.11.2020,Adults and Health,"Adults, Health and Housing",TESCO STORES 5135,61.33,0,61.33,General Provisions (Food),Grocery stores
Buckinghamshire Council,30.11.2020,30.11.2020,"Planning, Growth & Sustainability","Planning, Growth & Sustainability",WH SMITH,8.99,0,8.99,Stationery & Office Supplies,Newspapers / newsagents
Buckinghamshire Council,30.11.2020,30.11.2020,Adults and Health,"Adults, Health and Housing",AMZNMKTPLACE,7.89,0,7.89,Stationery & Office Supplies,Miscellaneous retail
Buckinghamshire Council,30.11.2020,30.11.2020,Adults and Health,"Adults, Health and Housing",AMAZON.CO.UK,111.65,22.33,133.98,Stationery & Office Supplies,Miscellaneous retail
Buckinghamshire Council,30.11.2020,30.11.2020,Adults and Health,"Adults, Health and Housing",AMAZON.CO.UK,0.01,0,0.01,Stationery & Office Supplies,Miscellaneous retail
Buckinghamshire Council,30.11.2020,30.11.2020,Adults and Health,"Adults, Health and Housing",VIKING UK,28.8,5.76,34.56,Stationery & Office Supplies,Stationery & office supplies
Buckinghamshire Council,30.11.2020,30.11.2020,Adults and Health,"Adults, Health and Housing",WAITROSE 177,21.4,0,21.4,General Provisions (Food),Grocery stores
Buckinghamshire Council,30.11.2020,30.11.2020,Children's Services,Children's Services,HOTEL ON BOOKING.COM,160,0,160,"Courses, Conference and Seminar Fees","Hotels, motels & resorts"
Buckinghamshire Council,30.11.2020,30.11.2020,Children's Services,Children's Services,AMZNMKTPLACE,14.48,0,14.48,ICT Equipment internal charges,Miscellaneous retail
Buckinghamshire Council,30.11.2020,30.11.2020,Communities,Communities,WWW.UKPOS.COM,111,22.2,133.2,Administrative Equipment & Tools,Stationery & office supplies stores
Buckinghamshire Council,30.11.2020,30.11.2020,Children's Services,Children's Services,ASDA SUPERSTORE,17.59,0,17.59,General Provisions (Food),Grocery stores
Buckinghamshire Council,30.11.2020,30.11.2020,Children's Services,Children's Services,TESCO STORES 2041,1.69,0,1.69,General Provisions (Food),Grocery stores
Buckinghamshire Council,30.11.2020,30.11.2020,Children's Services,Children's Services,TRAVELODGE GB0000,42.57,0,42.57,Sec 17: Financial Assistance,Travelodge
Buckinghamshire Council,30.11.2020,30.11.2020,Children's Services,Children's Services,TESCO STORES 2038,20,0,20,Awaiting Coding,Grocery stores
Buckinghamshire Council,30.11.2020,30.11.2020,Children's Services,Children's Services,TESCO STORES 2038,17,0,17,Awaiting Coding,Grocery stores
Buckinghamshire Council,30.11.2020,30.11.2020,Adults and Health,"Adults, Health and Housing",SAINSBURY'S S/MKT,54.04,0,54.04,General Provisions (Food),Grocery stores
Buckinghamshire Council,30.11.2020,30.11.2020,Resources,Resources,Amazon.co.uk,155.94,0,155.94,Stationery & Office Supplies,Direct sales companies
Buckinghamshire Council,30.11.2020,30.11.2020,Communities,Farnham Park,COSTCO WHOLESALE #102,105.88,0,105.88,Stationery & Office Supplies,Buying & shopping services/clubs
Buckinghamshire Council,30.11.2020,30.11.2020,Children's Services,Children's Services,ARGOS LTD,160,0,160,Equipment (including storage),Discount stores
Buckinghamshire Council,30.11.2020,30.11.2020,Children's Services,Children's Services,ARGOS LTD,264.95,0,264.95,Equipment (including storage),Discount stores
Buckinghamshire Council,30.11.2020,30.11.2020,Deputy Chief Executive,Deputy Chief Executive,SAINSBURYS S/MKTS,6.2,0,6.2,Awaiting Coding,Grocery stores
Buckinghamshire Council,30.11.2020,30.11.2020,"Planning, Growth & Sustainability","Planning, Growth & Sustainability",LAND REGISTRY,6,0,6,Awaiting Coding,Government services
Buckinghamshire Council,30.11.2020,30.11.2020,Adults and Health,"Adults, Health and Housing",TESCO STORES 5135,80.54,0,80.54,General Provisions (Food),Grocery stores
Buckinghamshire Council,30.11.2020,30.11.2020,Children's Services,Children's Services,MARKS&SPENCER PLC,25,0,25,Support for Foster Carers,Grocery stores
Buckinghamshire Council,30.11.2020,30.11.2020,Children's Services,Children's Services,ARGOS LTD,43.95,0,43.95,Support for Foster Carers,Discount stores
Buckinghamshire Council,30.11.2020,30.11.2020,Children's Services,Children's Services,THETRAINLINE.COM,77.19,0,77.19,Court Orders Sec 31: Supp. for Contact,Passenger railways
Buckinghamshire Council,30.11.2020,30.11.2020,Children's Services,Children's Services,ARGOS LTD,79.99,0,79.99,Court Orders Sec 31: Miscellaneous,Discount stores
Buckinghamshire Council,30.11.2020,30.11.2020,"Planning, Growth & Sustainability","Planning, Growth & Sustainability",LAND REGISTRY,3,0,3,Land Registry Fees,Government services
Buckinghamshire Council,30.11.2020,30.11.2020,Deputy Chief Executive,Deputy Chief Executive,RINGGO,4.15,0,4.15,Staff Travelling Expenses,Car parking & garages
Buckinghamshire Council,30.11.2020,30.11.2020,Adults and Health,"Adults, Health and Housing",MARKS&SPENCER PLC,25,0,25,Other General Office Expenses,Grocery stores
Buckinghamshire Council,30.11.2020,30.11.2020,Communities,Partnerships - Communities,PAYPAL,-2.99,0,-2.99,Miscellaneous (Other)  Expenses,Sporting goods shops
Buckinghamshire Council,30.11.2020,30.11.2020,Children's Services,Children's Services,DUNELM,582,0,582,Other Equipment and Materials,Furniture & home furnishing
Buckinghamshire Council,30.11.2020,30.11.2020,Children's Services,Children's Services,PAYPAL,40.84,0,40.84,Activities Programme,Sporting goods shops
Buckinghamshire Council,30.11.2020,30.11.2020,Deputy Chief Executive,Deputy Chief Executive,PAYPAL,"1,092.00",0,"1,092.00",LKD Other Professional & Consultancy Fees,Professional services
Buckinghamshire Council,30.11.2020,30.11.2020,Deputy Chief Executive,Deputy Chief Executive,PAYPAL,"1,008.00",0,"1,008.00",LKD Other Professional & Consultancy Fees,Professional services
Buckinghamshire Council,30.11.2020,30.11.2020,Deputy Chief Executive,Deputy Chief Executive,PAYPAL,108,0,108,LKD Other Professional & Consultancy Fees,Professional services
Buckinghamshire Council,30.11.2020,30.11.2020,Deputy Chief Executive,Deputy Chief Executive,PAYPAL,288,0,288,LKD Other Professional & Consultancy Fees,Professional services
Buckinghamshire Council,30.11.2020,30.11.2020,Children's Services,Children's Services,BOOTS.COM,198,0,198,Equipment (including storage),Chemists & pharmacies
Buckinghamshire Council,30.11.2020,29.11.2020,Children's Services,Children's Services,AMZNMKTPLACE,225.39,0,225.39,Leaving Care-Grants for Care Leavers,Miscellaneous retail
Buckinghamshire Council,30.11.2020,29.11.2020,Communities,Communities,WWW.THERANGE.CO.UK,49.95,9.99,59.94,Events Expenditure,Furniture & home furnishing
Buckinghamshire Council,30.11.2020,29.11.2020,Communities,Communities,WWW.THERANGE.CO.UK,4.95,0,4.95,Events Expenditure,Furniture & home furnishing
Buckinghamshire Council,30.11.2020,29.11.2020,Communities,Communities,AMZNMKTPLACE AMAZON.CO.UK,160.17,0,160.17,IT Equipment Purchase,Miscellaneous retail
Buckinghamshire Council,30.11.2020,29.11.2020,Deputy Chief Executive,Deputy Chief Executive,PUBLICATE,11.63,0,11.63,"Books, Records, Films & Oth Publications",Computer software stores
Buckinghamshire Council,30.11.2020,29.11.2020,Adults and Health,"Adults, Health and Housing",AMZNMKTPLACE,17.42,0,17.42,Health & Safety Supplies & Services,Miscellaneous retail
Buckinghamshire Council,30.11.2020,29.11.2020,Children's Services,Children's Services,ALDI 71 775,19.9,0,19.9,Awaiting Coding,Grocery stores
Buckinghamshire Council,30.11.2020,29.11.2020,Children's Services,Children's Services,AMZ*LONDON GENERAL INS,-2.99,0,-2.99,Awaiting Coding,Miscellaneous retail
Buckinghamshire Council,30.11.2020,29.11.2020,Communities,Communities,MARKS&SPENCER PLC,47.5,0,47.5,Awaiting Coding,Grocery stores
Buckinghamshire Council,30.11.2020,29.11.2020,Resources,Resources,FACEBK *CVZ6GW6742,267.94,0,267.94,Advertising,Advertising services
Buckinghamshire Council,30.11.2020,29.11.2020,Adults and Health,"Adults, Health and Housing",AMAZON.CO.UK,75.98,0,75.98,Cleaning & Domestic Equipment,Miscellaneous retail
Buckinghamshire Council,30.11.2020,28.11.2020,Children's Services,Children's Services,AMZNMKTPLACE,79.99,0,79.99,Other Personal Needs,Miscellaneous retail
Buckinghamshire Council,30.11.2020,28.11.2020,Communities,Communities,AMZNMKTPLACE,13.3,2.66,15.96,Events Expenditure,Miscellaneous retail
Buckinghamshire Council,30.11.2020,28.11.2020,Communities,Communities,AMZNMKTPLACE,0.02,0,0.02,Events Expenditure,Miscellaneous retail
Buckinghamshire Council,30.11.2020,28.11.2020,Resources,Resources,ABRATAX - MTD,10,2,12,Computer Consumables,Computer software stores
Buckinghamshire Council,30.11.2020,28.11.2020,Children's Services,Children's Services,AMAZON PRIME,7.99,0,7.99,Equipment (including storage),Continuous subscriptions
Buckinghamshire Council,30.11.2020,28.11.2020,Adults and Health,"Adults, Health and Housing",TESCO SUBSCRIPTION,6.99,0,6.99,Stationery & Office Supplies,Continuous subscriptions
Buckinghamshire Council,30.11.2020,28.11.2020,Children's Services,Children's Services,ARGOS LTD,-6,0,-6,Sec 17: Financial Assistance,Discount stores
Buckinghamshire Council,30.11.2020,28.11.2020,Adults and Health,"Adults, Health and Housing",TRAINLINE,72.92,0,72.92,Staff Travelling Expenses,Passenger railways
Buckinghamshire Council,30.11.2020,28.11.2020,Deputy Chief Executive,Deputy Chief Executive,FACEBK L7KAEYEYV2,90,0,90,Advertising,Advertising services
Buckinghamshire Council,30.11.2020,28.11.2020,"Planning, Growth & Sustainability","Planning, Growth & Sustainability",SAINSBURY'S S/MKT,85.65,0,85.65,Other General Office Expenses,Grocery stores
Buckinghamshire Council,30.11.2020,27.11.2020,Resources,Resources,AMZNMKTPLACE,11.9,0,11.9,Stationery & Office Supplies,Miscellaneous retail
Buckinghamshire Council,30.11.2020,27.11.2020,Children's Services,Children's Services,HOTEL ON BOOKING.COM,79.3,0,79.3,Staff Travelling Expenses,"Hotels, motels & resorts"
Buckinghamshire Council,30.11.2020,27.11.2020,Children's Services,Children's Services,WWW.WIGHTLINK.CO.UK,71,0,71,Staff Travelling Expenses,Local commuter transport
Buckinghamshire Council,30.11.2020,27.11.2020,Communities,Communities,AMZNMKTPLACE,4.4,0.88,5.28,Events Expenditure,Miscellaneous retail
Buckinghamshire Council,30.11.2020,27.11.2020,Communities,Communities,AMZNMKTPLACE,0.01,0,0.01,Events Expenditure,Miscellaneous retail
Buckinghamshire Council,30.11.2020,27.11.2020,Communities,Communities,AMZNMKTPLACE,9.15,1.83,10.98,Events Expenditure,Miscellaneous retail
Buckinghamshire Council,30.11.2020,27.11.2020,"Planning, Growth & Sustainability",Planning Growth & Sustainability,LOCK & KEY CENTRE,30,0,30,Awaiting Coding,Shoe repairs
Buckinghamshire Council,30.11.2020,27.11.2020,Communities,Communities,AMZNMKTPLACE,13.89,0,13.89,Protective Clothing & Uniforms,Miscellaneous retail
Buckinghamshire Council,30.11.2020,27.11.2020,Communities,Communities,AMZNMKTPLACE AMAZON.CO.UK,46,0,46,IT Equipment Purchase,Miscellaneous retail
Buckinghamshire Council,30.11.2020,27.11.2020,Communities,Communities,CHEW VALLEY TREES,336,0,336,Maintenance of Grounds,Lawn & garden supply/nursery
Buckinghamshire Council,30.11.2020,27.11.2020,Communities,Communities,HEDGENURSERY,94,0,94,Maintenance of Grounds,Lawn & garden supply/nursery
Buckinghamshire Council,30.11.2020,27.11.2020,Communities,Communities,WWW.HOPESGROVENURSERIE,409.33,0,409.33,Maintenance of Grounds,Lawn & garden supply/nursery
Buckinghamshire Council,30.11.2020,27.11.2020,Communities,Communities,WWW.GREEN-TECH.CO.UK,210.96,0,210.96,Maintenance of Grounds,Misc business services
Buckinghamshire Council,30.11.2020,27.11.2020,Communities,Communities,HEDGENURSERY,-49.01,0,-49.01,Maintenance of Grounds,Lawn & garden supply/nursery
Buckinghamshire Council,30.11.2020,27.11.2020,Communities,Communities,STARTTRAFFIC.UK,477.7,0,477.7,Maintenance of Grounds,Misc. general merchandise
Buckinghamshire Council,30.11.2020,27.11.2020,Deputy Chief Executive,Deputy Chief Executive,SLI DO,49,9.8,58.8,Computer Consumables,Computer software stores
Buckinghamshire Council,30.11.2020,27.11.2020,"Planning, Growth & Sustainability",Planning Growth & Sustainability,WWW.JCTLTD.CO.UK,87.2,0,87.2,Construction - Ancillary Fees & Expenses,Book stores
Buckinghamshire Council,30.11.2020,27.11.2020,"Planning, Growth & Sustainability","Planning, Growth & Sustainability",C S LABELS LTD,438,0,438,Printing & Stationery,Stationery & office supplies stores
Buckinghamshire Council,30.11.2020,27.11.2020,Adults and Health,"Adults, Health and Housing",AMAZON.CO.UK,69,0,69,Catering & Domestic Equipment,Miscellaneous retail
Buckinghamshire Council,30.11.2020,27.11.2020,Adults and Health,"Adults, Health and Housing",AMZNMKTPLACE,89.97,0,89.97,Stationery & Office Supplies,Miscellaneous retail
Buckinghamshire Council,30.11.2020,27.11.2020,Children's Services,Children's Services,TRAVELODGE GB0000,127.72,0,127.72,Sec 17: Financial Assistance,Travelodge
Buckinghamshire Council,30.11.2020,27.11.2020,Deputy Chief Executive,Deputy Chief Executive,HOBBYCRAFT TRADING LIMITE,20,0,20,Subsistence,Art & craft shops
Buckinghamshire Council,30.11.2020,27.11.2020,Children's Services,Children's Services,ASDA GEORGE COM LEEDS,54.5,0,54.5,Equipment (including storage),Grocery stores
Buckinghamshire Council,30.11.2020,27.11.2020,CC Obsolete Cost Centres,Obsolete Cost Centres,ALLPAY *HIGHTOWN HOUSING,123.88,0,123.88,Awaiting Coding,Charitable organisations
Buckinghamshire Council,30.11.2020,27.11.2020,Communities,Farnham Park,WICKES SLOUGH,21,0,21,General Repairs & Maintenance,Timber & building supplies
Buckinghamshire Council,30.11.2020,27.11.2020,Children's Services,Children's Services,HALFORDS ON LINE,80,0,80,Equipment (including storage),"Bicycle shops, sales & service"
Buckinghamshire Council,30.11.2020,27.11.2020,Children's Services,Children's Services,WWW.ONLINE4BABY.COM,87.4,0,87.4,Equipment (including storage),Miscellaneous retail
Buckinghamshire Council,30.11.2020,27.11.2020,"Planning, Growth & Sustainability",Planning Growth & Sustainability,LOCK & KEY CENTRE,6,0,6,Furniture,Shoe repairs
Buckinghamshire Council,30.11.2020,27.11.2020,"Planning, Growth & Sustainability","Planning, Growth & Sustainability",LAND REGISTRY,6,0,6,Awaiting Coding,Government services
Buckinghamshire Council,30.11.2020,27.11.2020,Children's Services,Children's Services,EB *DOMESTIC ABUSE MEN,20,0,20,Activities & General Recreation,Misc business services
Buckinghamshire Council,30.11.2020,27.11.2020,Children's Services,Children's Services,GREAT MALVERN TAXIS,250,0,250,Court Orders Sec 31: Supp. for Contact,Taxicabs & limousines
Buckinghamshire Council,30.11.2020,27.11.2020,Children's Services,Children's Services,NEALES TAXIS LTD,120,0,120,Sec 17: Financial Assistance,Taxicabs & limousines
Buckinghamshire Council,30.11.2020,27.11.2020,Communities,Partnerships - Communities,PAYPAL,201.99,0,201.99,Miscellaneous (Other)  Expenses,Sporting goods shops
Buckinghamshire Council,30.11.2020,26.11.2020,"Planning, Growth & Sustainability","Planning, Growth & Sustainability",RTPI,158,0,158,Professional Subscriptions re Employees,"Member clubs, sport, recreation & golf"
Buckinghamshire Council,30.11.2020,26.11.2020,Children's Services,Children's Services,BUCKIGHAMSHIRE COUNCIL,735.64,0,735.64,Leaving Care  - Financial Assistance,Government services
Buckinghamshire Council,30.11.2020,26.11.2020,Children's Services,Children's Services,BUCKIGHAMSHIRE COUNCIL,460,0,460,Leaving Care  - Financial Assistance,Government services
Buckinghamshire Council,30.11.2020,26.11.2020,Communities,Communities,CH MORGAN,57.05,0,57.05,Repair & Maint of Vehicles & Plant,"Architectural, engineering & surveying"
Buckinghamshire Council,30.11.2020,26.11.2020,Communities,Communities,AMZNMKTPLACE,9.39,1.89,11.28,Events Expenditure,Miscellaneous retail
Buckinghamshire Council,30.11.2020,26.11.2020,Children's Services,Children's Services,AMZNMKTPLACE,24.99,5,29.99,Computer Consumables,Miscellaneous retail
Buckinghamshire Council,30.11.2020,26.11.2020,"Planning, Growth & Sustainability",Planning Growth & Sustainability,SCREWFIX DIRECT,11.97,0,11.97,General Repairs & Maintenance,Timber & building supplies
Buckinghamshire Council,30.11.2020,26.11.2020,Adults and Health,"Adults, Health and Housing",AMZNMKTPLACE,11.98,0,11.98,Activities & General Recreation,Miscellaneous retail
Buckinghamshire Council,30.11.2020,26.11.2020,Children's Services,Children's Services,THETRAINLINE.COM,115.23,0,115.23,Court Orders Sec 31: Miscellaneous,Passenger railways
Buckinghamshire Council,30.11.2020,26.11.2020,Communities,Communities,WICKES HIGH WYCOMBE,112.5,0,112.5,Maintenance of Grounds,Timber & building supplies
Buckinghamshire Council,30.11.2020,26.11.2020,Communities,Communities,SHELL HAZLEMERE,28.74,0,28.74,Maintenance of Grounds,Service stations
Buckinghamshire Council,30.11.2020,26.11.2020,Children's Services,Children's Services,AMAZON.CO.UK,71.61,14.33,85.94,Administrative Equipment & Tools,Direct sales companies
Buckinghamshire Council,30.11.2020,26.11.2020,"Planning, Growth & Sustainability","Planning, Growth & Sustainability",THE LED SPECIALIST LTD,250.68,0,250.68,General Repairs & Maintenance,Miscellaneous retail
Buckinghamshire Council,30.11.2020,26.11.2020,Communities,Communities,HIGHSTREETVOUCHERS,203.5,0,203.5,Awaiting Coding,"Civic, social & fraternal associations"
Buckinghamshire Council,30.11.2020,26.11.2020,Communities,Communities,MASON BRADSHAW LIMITED,810,0,810,Agency Worker,Employment & temporary staff agencies
Buckinghamshire Council,30.11.2020,26.11.2020,Resources,Resources,GMO GLOBALSIGN LIM,216,0,216,Computer Software Licences & Purchase,Computer network information services
Buckinghamshire Council,30.11.2020,26.11.2020,Deputy Chief Executive,Deputy Chief Executive,WP ENGINE,27.83,0,27.83,Computer Software Licences & Purchase,"Programming, data processing & system design"
Buckinghamshire Council,30.11.2020,26.11.2020,Children's Services,Partnerships - Children's Service,DVLA DRIVER ONLINE,34,0,34,YOS - Direct Work,Government services
Buckinghamshire Council,30.11.2020,26.11.2020,Children's Services,Children's Services,HOME BARGAINS,17.01,0,17.01,Other Equipment and Materials,Hardware stores
Buckinghamshire Council,30.11.2020,26.11.2020,Children's Services,Children's Services,HOME BARGAINS,9.96,0,9.96,Cleaning Materials,Hardware stores
Buckinghamshire Council,30.11.2020,26.11.2020,Children's Services,Children's Services,AMZNMKTPLACE,23.99,0,23.99,Equipment (including storage),Miscellaneous retail
Buckinghamshire Council,30.11.2020,26.11.2020,Children's Services,Children's Services,AMZNMKTPLACE,36.99,0,36.99,Equipment (including storage),Miscellaneous retail
Buckinghamshire Council,30.11.2020,26.11.2020,Children's Services,Children's Services,AMAZON.CO.UK,18.85,3.77,22.62,Activities & General Recreation,Direct sales companies
Buckinghamshire Council,30.11.2020,26.11.2020,Children's Services,Children's Services,AMAZON.CO.UK,131.27,0,131.27,Activities & General Recreation,Direct sales companies
Buckinghamshire Council,30.11.2020,26.11.2020,"Planning, Growth & Sustainability",Planning Growth & Sustainability,LOCK & KEY CENTRE,8,0,8,Furniture,Shoe repairs
Buckinghamshire Council,30.11.2020,26.11.2020,"Planning, Growth & Sustainability",Planning Growth & Sustainability,LOCK & KEY CENTRE,9,0,9,Furniture,Shoe repairs
Buckinghamshire Council,30.11.2020,26.11.2020,Resources,Resources,SOCIETYWORKS,100,0,100,Computer Support Services,"Programming, data processing & system design"
Buckinghamshire Council,30.11.2020,26.11.2020,"Planning, Growth & Sustainability","Planning, Growth & Sustainability",LAND REGISTRY,3,0,3,Awaiting Coding,Government services
Buckinghamshire Council,30.11.2020,26.11.2020,Deputy Chief Executive,Deputy Chief Executive,JUST EAT.CO.UK LTD,20,0,20,Subsistence,Fast food restaurants
Buckinghamshire Council,30.11.2020,26.11.2020,Children's Services,Children's Services,WWW.MYPOSTSHOP.COM,2.5,0.5,3,Project Funding,Stationery & office supplies
Buckinghamshire Council,30.11.2020,26.11.2020,Children's Services,Children's Services,WWW.MYPOSTSHOP.COM,10.55,0,10.55,Project Funding,Stationery & office supplies
Buckinghamshire Council,30.11.2020,25.11.2020,Deputy Chief Executive,Deputy Chief Executive,CURRYS ONLINE,503.99,0,503.99,Awaiting Coding,Electronics shops
Buckinghamshire Council,30.11.2020,25.11.2020,Deputy Chief Executive,Deputy Chief Executive,CURRYS ONLINE,219.99,0,219.99,Awaiting Coding,Electronics shops
Buckinghamshire Council,30.11.2020,25.11.2020,Deputy Chief Executive,Deputy Chief Executive,CURRYS ONLINE,513.99,0,513.99,Awaiting Coding,Electronics shops
Buckinghamshire Council,30.11.2020,25.11.2020,Communities,Communities,SCREWFIX DIRECT,31.96,0,31.96,Protective Clothing & Uniforms,Timber & building supplies
Buckinghamshire Council,30.11.2020,25.11.2020,Children's Services,Children's Services,SP * LAURA JAMES HOME,83.98,0,83.98,Leaving Care-Grants for Care Leavers,Furniture & home furnishing
Buckinghamshire Council,30.11.2020,25.11.2020,Communities,Communities,GEORGE BROWNS,172.51,0,172.51,Repair & Maint of Vehicles & Plant,Miscellaneous retail
Buckinghamshire Council,30.11.2020,25.11.2020,Communities,Communities,FAROL,208.18,0,208.18,Repair & Maint of Vehicles & Plant,Misc business services
Buckinghamshire Council,30.11.2020,25.11.2020,Children's Services,Children's Services,POST OFFICE COUNTER,9.8,0,9.8,General Postage,Postal services
Buckinghamshire Council,30.11.2020,25.11.2020,Children's Services,Children's Services,ENGLISHTYPE,29.95,0,29.95,Computer Consumables,Computer software stores
Buckinghamshire Council,30.11.2020,25.11.2020,"Planning, Growth & Sustainability",Planning Growth & Sustainability,SCREWFIX DIRECT,18.97,0,18.97,General Repairs & Maintenance,Timber & building supplies
Buckinghamshire Council,30.11.2020,25.11.2020,Adults and Health,"Adults, Health and Housing",AMZNMktplace,44.41,0,44.41,Awaiting Coding,Miscellaneous retail
Buckinghamshire Council,30.11.2020,25.11.2020,Adults and Health,"Adults, Health and Housing",AMZNMktplace,81.66,0,81.66,Awaiting Coding,Miscellaneous retail
Buckinghamshire Council,30.11.2020,25.11.2020,Children's Services,Children's Services,BUCKINGHAMSHIRE CNCL,44,0,44,Awaiting Coding,Government services
Buckinghamshire Council,30.11.2020,25.11.2020,Adults and Health,"Adults, Health and Housing",AMZNMKTPLACE,17.48,0,17.48,Activities & General Recreation,Miscellaneous retail
Buckinghamshire Council,30.11.2020,25.11.2020,Adults and Health,"Adults, Health and Housing",AMZNMKTPLACE,21.48,0,21.48,Activities & General Recreation,Miscellaneous retail
Buckinghamshire Council,30.11.2020,25.11.2020,Communities,Communities,AMZNMKTPLACE AMAZON.CO.UK,82.61,16.53,99.14,IT Equipment Purchase,Miscellaneous retail
Buckinghamshire Council,30.11.2020,25.11.2020,Communities,Communities,AMZNMKTPLACE AMAZON.CO.UK,53.98,0,53.98,IT Equipment Purchase,Miscellaneous retail
Buckinghamshire Council,30.11.2020,25.11.2020,Resources,Resources,ARGOS LTD,19.99,0,19.99,Administrative Equipment & Tools,Discount stores
Buckinghamshire Council,30.11.2020,25.11.2020,"Planning, Growth & Sustainability","Planning, Growth & Sustainability",LAND REGISTRY,3,0,3,Land Registry Fees,Government services
Buckinghamshire Council,30.11.2020,25.11.2020,Communities,Communities,AMZNMKTPLACE,12.48,2.5,14.98,Printing & Stationery,Miscellaneous retail
Buckinghamshire Council,30.11.2020,25.11.2020,Children's Services,Children's Services,WWW.TALKTALKBUSINESS.C,33.45,6.69,40.14,Computer Support Services,Computer network information services
Buckinghamshire Council,30.11.2020,25.11.2020,Adults and Health,"Adults, Health and Housing",SAINSBURYS SUPERMA,4.5,0,4.5,General Provisions (Food),Grocery stores
Buckinghamshire Council,30.11.2020,25.11.2020,Children's Services,Children's Services,ARGOS LTD,78.95,0,78.95,Court Orders Sec 31: Miscellaneous,Discount stores
Buckinghamshire Council,30.11.2020,25.11.2020,Children's Services,Children's Services,QD STORES,49.9,0,49.9,Equipment (including storage),Discount stores
Buckinghamshire Council,30.11.2020,25.11.2020,Adults and Health,"Adults, Health and Housing",WAITROSE 177,16.2,0,16.2,General Provisions (Food),Grocery stores
Buckinghamshire Council,30.11.2020,25.11.2020,Adults and Health,"Adults, Health and Housing",AMAZON.CO.UK,9.93,1.99,11.92,Stationery & Office Supplies,Miscellaneous retail
Buckinghamshire Council,30.11.2020,25.11.2020,Communities,Communities,WWW.UKPOS.COM,198.8,39.76,238.56,Administrative Equipment & Tools,Stationery & office supplies stores
Buckinghamshire Council,30.11.2020,25.11.2020,"Planning, Growth & Sustainability","Planning, Growth & Sustainability",WWW.WIRELESSLOGIC.COM,63.36,0,63.36,Awaiting Coding,Misc business services
Buckinghamshire Council,30.11.2020,25.11.2020,"Planning, Growth & Sustainability",Planning Growth & Sustainability,WWW.NEOPOST.CO.UK,"1,000.00",0,"1,000.00",General Postage,Stationery & office supplies
Buckinghamshire Council,30.11.2020,25.11.2020,Communities,Farnham Park,SELCO TRADING CTR,43.43,0,43.43,General Repairs & Maintenance,Timber & building supplies
Buckinghamshire Council,30.11.2020,25.11.2020,Children's Services,Children's Services,AMAZON.CO.UK,16.24,3.25,19.49,Equipment (including storage),Direct sales companies
Buckinghamshire Council,30.11.2020,25.11.2020,Children's Services,Children's Services,WWW.ONLINE4BABY.COM,80.9,4.05,84.95,Equipment (including storage),Miscellaneous retail
Buckinghamshire Council,30.11.2020,25.11.2020,Children's Services,Children's Services,AMZNMKTPLACE,13.65,0,13.65,Equipment (including storage),Miscellaneous retail
Buckinghamshire Council,30.11.2020,25.11.2020,Children's Services,Children's Services,AMZNMKTPLACE,103.31,0,103.31,Equipment (including storage),Miscellaneous retail
Buckinghamshire Council,30.11.2020,25.11.2020,Children's Services,Children's Services,NEXT DIRECTORY,15.99,0,15.99,Equipment (including storage),Catalogue & retail shops
Buckinghamshire Council,30.11.2020,25.11.2020,Children's Services,Children's Services,BOOTS.COM,76.95,0,76.95,Equipment (including storage),Chemists & pharmacies
Buckinghamshire Council,30.11.2020,25.11.2020,Children's Services,Children's Services,BOOTS.COM,16.55,0,16.55,Equipment (including storage),Chemists & pharmacies
Buckinghamshire Council,30.11.2020,25.11.2020,Children's Services,Children's Services,AMZ*AMAZON.CO.UK,-22,0,-22,Equipment (including storage),Miscellaneous retail
Buckinghamshire Council,30.11.2020,25.11.2020,"Planning, Growth & Sustainability",Planning Growth & Sustainability,ALDI 110 775,4.8,0,4.8,Vending Machines Supplies,Grocery stores
Buckinghamshire Council,30.11.2020,25.11.2020,Children's Services,Children's Services,THE TAXI PEOPLE,4,0,4,Staff Travelling Expenses,Taxicabs & limousines
Buckinghamshire Council,30.11.2020,25.11.2020,Adults and Health,"Adults, Health and Housing",BRIANTS OF RISBOROUGH LT,197.5,39.5,237,Other Equipment and Materials,Furniture & home furnishing
Buckinghamshire Council,30.11.2020,25.11.2020,Children's Services,Children's Services,WENDOVER NEWSAGENT,4.99,0,4.99,"Exp of School, Club & College Activities",Newspapers / newsagents
Buckinghamshire Council,30.11.2020,25.11.2020,Children's Services,Children's Services,POST OFFICE COUNTER,3.04,0,3.04,"Exp of School, Club & College Activities",Postal services
Buckinghamshire Council,30.11.2020,25.11.2020,Adults and Health,"Adults, Health and Housing",AMZNMKTPLACE,44.05,0,44.05,Activities & General Recreation,Miscellaneous retail
Buckinghamshire Council,30.11.2020,25.11.2020,Children's Services,Children's Services,AMZNMKTPLACE,68.74,0,68.74,Stationery & Office Supplies,Miscellaneous retail
Buckinghamshire Council,30.11.2020,25.11.2020,"Planning, Growth & Sustainability","Planning, Growth & Sustainability",LAND REGISTRY,3,0,3,Land Registry Fees,Government services
Buckinghamshire Council,30.11.2020,25.11.2020,"Planning, Growth & Sustainability","Planning, Growth & Sustainability",LAND REGISTRY,3,0,3,Land Registry Fees,Government services
Buckinghamshire Council,30.11.2020,25.11.2020,Adults and Health,"Adults, Health and Housing",MARKS&SPENCER PLC,25,0,25,Other General Office Expenses,Grocery stores
Buckinghamshire Council,30.11.2020,25.11.2020,Communities,Communities,AMAZON.CO.UK,9.99,0,9.99,"Books, Records, Films & Oth Publications",Miscellaneous retail
Buckinghamshire Council,30.11.2020,25.11.2020,Communities,Communities,AMAZON.CO.UK,23.88,0,23.88,"Books, Records, Films & Oth Publications",Direct sales companies
Buckinghamshire Council,30.11.2020,25.11.2020,Children's Services,Children's Services,DUNELM,25.95,0,25.95,Equipment (including storage),Furniture & home furnishing
Buckinghamshire Council,30.11.2020,25.11.2020,Children's Services,Children's Services,WWW.JDWILLIAMS.CO.UK,64.99,0,64.99,Leaving Care-Grants for Care Leavers,Department stores
Buckinghamshire Council,30.11.2020,25.11.2020,Children's Services,Children's Services,WWW.JDWILLIAMS.CO.UK,3.5,0,3.5,Leaving Care-Grants for Care Leavers,Department stores
Buckinghamshire Council,30.11.2020,25.11.2020,Children's Services,Children's Services,WWW.JDWILLIAMS.CO.UK,7,0,7,Leaving Care-Grants for Care Leavers,Department stores
Buckinghamshire Council,30.11.2020,24.11.2020,"Planning, Growth & Sustainability","Planning, Growth & Sustainability",RTPI,158,0,158,Professional Subscriptions re Employees,"Member clubs, sport, recreation & golf"
Buckinghamshire Council,30.11.2020,24.11.2020,Deputy Chief Executive,Deputy Chief Executive,CURRYS ONLINE,299,0,299,Awaiting Coding,Electronics shops
Buckinghamshire Council,30.11.2020,24.11.2020,Children's Services,Children's Services,EB *DOMESTIC ABUSE MEN,20,0,20,Course Fees & Post Entry Training,Misc business services
Buckinghamshire Council,30.11.2020,24.11.2020,"Planning, Growth & Sustainability","Planning, Growth & Sustainability",HOBBYCRAFT TRADING LIMITE,47.75,0,47.75,Printing & Stationery,Art & craft shops
Buckinghamshire Council,30.11.2020,24.11.2020,Children's Services,Children's Services,FREEDOM PROGRAMME LIMITED,24,0,24,Sec 17: Financial Assistance,Schools
Buckinghamshire Council,30.11.2020,24.11.2020,Adults and Health,"Adults, Health and Housing",ASDA SUPERSTORE,22.08,0,22.08,Other Equipment and Materials,Grocery stores
Buckinghamshire Council,30.11.2020,24.11.2020,Communities,Communities,TESCO STORES,1.15,0,1.15,Purchase.of Refreshments and Food,Grocery stores
Buckinghamshire Council,30.11.2020,24.11.2020,Communities,WCM HWT Spec Exp - Communities Di,ARCO LIMITED (AHPP),26.9,5.38,32.28,Maintenance of Grounds,Misc Industrial supplies
Buckinghamshire Council,30.11.2020,24.11.2020,"Planning, Growth & Sustainability",Planning Growth & Sustainability,TOOLSTATION LIMITED,25.26,0,25.26,General Repairs & Maintenance,Timber & building supplies
Buckinghamshire Council,30.11.2020,24.11.2020,Children's Services,Children's Services,AMZNMktplace,15.98,0,15.98,Awaiting Coding,Miscellaneous retail
Buckinghamshire Council,30.11.2020,24.11.2020,Children's Services,Children's Services,HM PASSPORT OFFICE,75.5,0,75.5,Court Orders Sec 31: Miscellaneous,Government services
Buckinghamshire Council,30.11.2020,24.11.2020,Adults and Health,"Adults, Health and Housing",TESCO STORES 5135,92.51,0,92.51,General Provisions (Food),Grocery stores
Buckinghamshire Council,30.11.2020,24.11.2020,"Planning, Growth & Sustainability",Planning Growth & Sustainability,SCREWFIX DIR LTD,22.75,0,22.75,General Repairs & Maintenance,Timber & building supplies
Buckinghamshire Council,30.11.2020,24.11.2020,Children's Services,Children's Services,TESCO STORES 2041,17.92,0,17.92,General Postage,Grocery stores
Buckinghamshire Council,30.11.2020,24.11.2020,Children's Services,Children's Services,AMZNMKTPLACE,27.64,0,27.64,Project Funding,Miscellaneous retail
Buckinghamshire Council,30.11.2020,24.11.2020,Communities,Communities,CO-OPERATIVE FOOD,6.81,0,6.81,Vending Machines Supplies,Grocery stores
Buckinghamshire Council,30.11.2020,24.11.2020,Deputy Chief Executive,Deputy Chief Executive,FACEBK RP48BYEYV2,60,0,60,Advertising,Advertising services
Buckinghamshire Council,30.11.2020,24.11.2020,Children's Services,Children's Services,AMAZON.CO.UK,25.94,0,25.94,Leaving Care-Grants for Care Leavers,Miscellaneous retail
Buckinghamshire Council,30.11.2020,24.11.2020,"Planning, Growth & Sustainability",Planning Growth & Sustainability,DEFIB PAD,94.8,0,94.8,General Repairs & Maintenance,Furniture & home furnishing
Buckinghamshire Council,30.11.2020,24.11.2020,Adults and Health,"Adults, Health and Housing",WM MORRISONS STORE,10,0,10,General Provisions (Food),Grocery stores
Buckinghamshire Council,30.11.2020,24.11.2020,"Planning, Growth & Sustainability",Planning Growth & Sustainability,B & Q 1305,28.79,5.76,34.55,Materials,Home supply warehouse stores
Buckinghamshire Council,30.11.2020,24.11.2020,Resources,Resources,AMAZON PRIME,-7.99,0,-7.99,Stationery & Office Supplies,Continuous subscriptions
Buckinghamshire Council,30.11.2020,24.11.2020,Children's Services,Children's Services,AMAZON.CO.UK,59,0,59,Court Orders Sec 31: Dir Work w Children,Direct sales companies
Buckinghamshire Council,30.11.2020,24.11.2020,"Planning, Growth & Sustainability","Planning, Growth & Sustainability",LAND REGISTRY,6,0,6,Land Registry Fees,Government services
Buckinghamshire Council,30.11.2020,24.11.2020,"Planning, Growth & Sustainability","Planning, Growth & Sustainability",LAND REGISTRY,6,0,6,Land Registry Fees,Government services
Buckinghamshire Council,30.11.2020,24.11.2020,"Planning, Growth & Sustainability","Planning, Growth & Sustainability",LAND REGISTRY,6,0,6,Land Registry Fees,Government services
Buckinghamshire Council,30.11.2020,24.11.2020,Communities,Communities,SAFETYSIGNS,100.76,0,100.76,Advertising,Advertising services
Buckinghamshire Council,30.11.2020,24.11.2020,Communities,Communities,STARTTRAFFIC.UK,473.35,0,473.35,Awaiting Coding,Misc. general merchandise
Buckinghamshire Council,30.11.2020,24.11.2020,Communities,Communities,BCW OFFICE PROD,376.51,0,376.51,Awaiting Coding,"Commercial photo, art & graphic"
Buckinghamshire Council,30.11.2020,24.11.2020,"Planning, Growth & Sustainability","Planning, Growth & Sustainability",HOME BARGAINS,2.97,0,2.97,Other General Office Expenses,Hardware stores
Buckinghamshire Council,30.11.2020,24.11.2020,Children's Services,Children's Services,EB *DOMESTIC ABUSE MEN,20,0,20,Activities & General Recreation,Misc business services
Buckinghamshire Council,30.11.2020,24.11.2020,Children's Services,Children's Services,AMAZON.CO.UK,27.52,0,27.52,Administrative Equipment & Tools,Direct sales companies
Buckinghamshire Council,30.11.2020,24.11.2020,Children's Services,Children's Services,AMZ*EXPRESS GOODS UK,-5.54,0,-5.54,"Books, Records, Films & Oth Publications",Miscellaneous retail
Buckinghamshire Council,30.11.2020,24.11.2020,Children's Services,Children's Services,THETRAINLINE.COM,111.77,0,111.77,Staff Travelling Expenses,Passenger railways
Buckinghamshire Council,30.11.2020,24.11.2020,Communities,Communities,AMZ*BOOK DEPOSITORY,-22.2,0,-22.2,"Books, Records, Films & Oth Publications",Miscellaneous retail
Buckinghamshire Council,30.11.2020,24.11.2020,Communities,Partnerships - Communities,AMAZON.CO.UK,15,0,15,Equipment,Direct sales companies
Buckinghamshire Council,30.11.2020,24.11.2020,Children's Services,Children's Services,ARGOS LTD,135.95,0,135.95,Leaving Care-Grants for Care Leavers,Discount stores
Buckinghamshire Council,30.11.2020,23.11.2020,"Planning, Growth & Sustainability","Planning, Growth & Sustainability",LINKINDEX,16,0,16,General Allowances,Misc. general merchandise
Buckinghamshire Council,30.11.2020,23.11.2020,Children's Services,Children's Services,WOWCHER,23.98,0,23.98,Other Personal Needs,Misc. personal services
Buckinghamshire Council,30.11.2020,23.11.2020,"Planning, Growth & Sustainability","Planning, Growth & Sustainability",R H ENVIRONMENTAL LTD,150,0,150,Computer Consumables,Computer software stores
Buckinghamshire Council,30.11.2020,23.11.2020,Children's Services,Children's Services,BUCKIGHAMSHIRE COUNCIL,225.29,0,225.29,Leaving Care  - Financial Assistance,Government services
Buckinghamshire Council,30.11.2020,23.11.2020,Children's Services,Children's Services,MADE.COM,424,0,424,Leaving Care-Grants for Care Leavers,Furniture & home furnishing
Buckinghamshire Council,30.11.2020,23.11.2020,Children's Services,Children's Services,CURRYS ONLINE,329,0,329,Leaving Care-Grants for Care Leavers,Electronics shops
Buckinghamshire Council,30.11.2020,23.11.2020,Children's Services,Children's Services,TAXIPAY TAXI FARE,49,0,49,Court Orders Sec 31: Miscellaneous,Taxicabs & limousines
Buckinghamshire Council,30.11.2020,23.11.2020,Communities,Communities,SSED LTD,372,74.4,446.4,CCTV,Detective & security services
Buckinghamshire Council,30.11.2020,23.11.2020,Adults and Health,"Adults, Health and Housing",WM MORRISONS STORE,15.19,0,15.19,Other Equipment and Materials,Grocery stores
Buckinghamshire Council,30.11.2020,23.11.2020,Children's Services,Children's Services,BUCKINGHAMSHIRE CNCL,11,0,11,Court Orders Sec 31: Miscellaneous,Government services
Buckinghamshire Council,30.11.2020,23.11.2020,Children's Services,Children's Services,ABC TAXIS,42,0,42,Court Orders Sec 31: Transport to School,Taxicabs & limousines
Buckinghamshire Council,30.11.2020,23.11.2020,Resources,Resources,BUCKINGHAMSHIRE COUNCIL,11,0,11,Miscellaneous (Other)  Expenses,Government services
Buckinghamshire Council,30.11.2020,23.11.2020,"Planning, Growth & Sustainability","Planning, Growth & Sustainability",BRITISH GAS ONLINE,50,0,50,Gas,Utilities
Buckinghamshire Council,30.11.2020,23.11.2020,"Planning, Growth & Sustainability","Planning, Growth & Sustainability",WWW.TALKTALKBUSINESS.C,110.34,0,110.34,Computer Software Licences & Purchase,Computer network information services
Buckinghamshire Council,30.11.2020,23.11.2020,"Planning, Growth & Sustainability","Planning, Growth & Sustainability",BRITISH GAS ONLINE,50,0,50,Electricity,Utilities
Buckinghamshire Council,30.11.2020,23.11.2020,Communities,Communities,LOCK & KEY CENTRE,58.8,0,58.8,Awaiting Coding,Shoe repairs
Buckinghamshire Council,30.11.2020,23.11.2020,Adults and Health,"Adults, Health and Housing",MARTIN MCCOLL,2.4,0,2.4,General Provisions (Food),Misc Food stores
Buckinghamshire Council,30.11.2020,23.11.2020,Adults and Health,"Adults, Health and Housing",AMZ*CHALKYS UK,-7.25,0,-7.25,Stationery & Office Supplies,Miscellaneous retail
Buckinghamshire Council,30.11.2020,23.11.2020,Children's Services,Children's Services,ARROW TRANSPORT (H/W) LIM,36,0,36,Sec 17: Transport (excl to Fam.Centres),Taxicabs & limousines
Buckinghamshire Council,30.11.2020,23.11.2020,"Planning, Growth & Sustainability","Planning, Growth & Sustainability",POUNDLAND LTD 1301,10,0,10,Printing & Stationery,Discount stores
Buckinghamshire Council,30.11.2020,23.11.2020,Communities,Communities,MARKS&SPENCER PLC,55,0,55,Protective Clothing & Uniforms,Grocery stores
Buckinghamshire Council,30.11.2020,23.11.2020,Communities,Communities,AMZ*KITAMP,-4.6,0,-4.6,Printing & Stationery,Miscellaneous retail
Buckinghamshire Council,30.11.2020,23.11.2020,Communities,Communities,AMZ*KITAMP,-4.59,0,-4.59,Printing & Stationery,Miscellaneous retail
Buckinghamshire Council,30.11.2020,23.11.2020,Communities,Communities,AMZ*KITAMP,-4.59,0,-4.59,Printing & Stationery,Miscellaneous retail
Buckinghamshire Council,30.11.2020,23.11.2020,Communities,Communities,AMZ*KITAMP,-4.59,0,-4.59,Printing & Stationery,Miscellaneous retail
Buckinghamshire Council,30.11.2020,23.11.2020,Communities,Communities,AMZ*KITAMP,-4.59,0,-4.59,Printing & Stationery,Miscellaneous retail
Buckinghamshire Council,30.11.2020,23.11.2020,Communities,Communities,AMZ*KITAMP,-4.59,0,-4.59,Printing & Stationery,Miscellaneous retail
Buckinghamshire Council,30.11.2020,23.11.2020,Communities,Communities,AMZ*KITAMP,-4.59,0,-4.59,Printing & Stationery,Miscellaneous retail
Buckinghamshire Council,30.11.2020,23.11.2020,Communities,Communities,AMZ*KITAMP,-4.59,0,-4.59,Printing & Stationery,Miscellaneous retail
Buckinghamshire Council,30.11.2020,23.11.2020,Communities,Communities,AMZ*KITAMP,-4.59,0,-4.59,Printing & Stationery,Miscellaneous retail
Buckinghamshire Council,30.11.2020,23.11.2020,Communities,Communities,AMZ*KITAMP,-4.59,0,-4.59,Printing & Stationery,Miscellaneous retail
Buckinghamshire Council,30.11.2020,23.11.2020,Communities,Farnham Park,HOME AND INTERIORS,4,0,4,Awaiting Coding,Drapery & upholstery shops
Buckinghamshire Council,30.11.2020,23.11.2020,"Planning, Growth & Sustainability","Planning, Growth & Sustainability",LAND REGISTRY,6,0,6,Land Registry Fees,Government services
Buckinghamshire Council,30.11.2020,23.11.2020,"Planning, Growth & Sustainability","Planning, Growth & Sustainability",LAND REGISTRY,3,0,3,Land Registry Fees,Government services
Buckinghamshire Council,30.11.2020,23.11.2020,Communities,Communities,ARGOS LTD,14.99,0,14.99,Equipment,Discount stores
Buckinghamshire Council,30.11.2020,23.11.2020,Adults and Health,"Adults, Health and Housing",TESCO STORES 5135,57.71,0,57.71,General Provisions (Food),Grocery stores
Buckinghamshire Council,30.11.2020,23.11.2020,Children's Services,Children's Services,AMAZON.CO.UK,89.99,0,89.99,IT Equipment Purchase,Miscellaneous retail
Buckinghamshire Council,30.11.2020,23.11.2020,Communities,Communities - Trading Accounts,DVLA VEHICLE TAX,267.5,0,267.5,Vehicle Taxation Costs,Tax payments
Buckinghamshire Council,30.11.2020,23.11.2020,Communities,Communities - Trading Accounts,DVLA VEHICLE TAX,267.5,0,267.5,Vehicle Taxation Costs,Tax payments
Buckinghamshire Council,30.11.2020,23.11.2020,Communities,Communities - Trading Accounts,DVLA VEHICLE TAX,267.5,0,267.5,Vehicle Taxation Costs,Tax payments
Buckinghamshire Council,30.11.2020,23.11.2020,Adults and Health,"Adults, Health and Housing",CARTRIDGEPEOPLE.COM,168.6,33.72,202.32,Stationery & Office Supplies,Stationery & office supplies
Buckinghamshire Council,30.11.2020,23.11.2020,Adults and Health,"Adults, Health and Housing",CARTRIDGEPEOPLE.COM,0.03,0,0.03,Stationery & Office Supplies,Stationery & office supplies
Buckinghamshire Council,30.11.2020,23.11.2020,Communities,Communities,AMZNMKTPLACE AMAZON.CO.UK,21.81,0,21.81,"Books, Records, Films & Oth Publications",Miscellaneous retail
Buckinghamshire Council,30.11.2020,23.11.2020,Communities,Communities,AMZ*MANOR HOUSE BOOKS,-8.46,0,-8.46,"Books, Records, Films & Oth Publications",Miscellaneous retail
Buckinghamshire Council,30.11.2020,23.11.2020,Communities,Communities,AMZ*THRIFTBOOKS-DALLAS,-5.57,0,-5.57,"Books, Records, Films & Oth Publications",Miscellaneous retail
Buckinghamshire Council,30.11.2020,23.11.2020,Communities,Communities,AMZ*THE RYDE BOOKSHOP,-3.5,0,-3.5,"Books, Records, Films & Oth Publications",Miscellaneous retail
Buckinghamshire Council,30.11.2020,23.11.2020,Resources,Resources,TRAVELODGE GB0000,-118.47,0,-118.47,"Courses, Conference and Seminar Fees",Travelodge
Buckinghamshire Council,30.11.2020,22.11.2020,Adults and Health,"Adults, Health and Housing",AMZNMKTPLACE,91.92,0,91.92,Activities & General Recreation,Miscellaneous retail
Buckinghamshire Council,30.11.2020,22.11.2020,Children's Services,Children's Services,AMZNMKTPLACE,43.39,0,43.39,Printing & Stationery,Miscellaneous retail
Buckinghamshire Council,30.11.2020,22.11.2020,Children's Services,Children's Services,BUCKINGHAMSHIRE COUNCIL,672,0,672,Leaving Care  - Financial Assistance,Government services
Buckinghamshire Council,30.11.2020,22.11.2020,Children's Services,Children's Services,BUCKINGHAMSHIRE COUNCIL,644.19,0,644.19,Leaving Care  - Financial Assistance,Government services
Buckinghamshire Council,30.11.2020,22.11.2020,Adults and Health,"Adults, Health and Housing",AMZNMKTPLACE,22.49,0,22.49,Other Equipment and Materials,Miscellaneous retail
Buckinghamshire Council,30.11.2020,22.11.2020,Adults and Health,"Adults, Health and Housing",TESCO STORES 2038,15.05,0,15.05,Cleaning & Domestic Equipment,Grocery stores
Buckinghamshire Council,30.11.2020,22.11.2020,Adults and Health,"Adults, Health and Housing",AMZNMKTPLACE,24.95,0,24.95,Activities & General Recreation,Miscellaneous retail
Buckinghamshire Council,30.11.2020,22.11.2020,Deputy Chief Executive,Deputy Chief Executive,FACEBK FH8V9YJYV2,40,0,40,Advertising,Advertising services
Buckinghamshire Council,30.11.2020,22.11.2020,Children's Services,Children's Services,AMZNMKTPLACE,28.98,0,28.98,Equipment (including storage),Miscellaneous retail
Buckinghamshire Council,30.11.2020,22.11.2020,Children's Services,Children's Services,AMZNMKTPLACE,45.96,0,45.96,Equipment (including storage),Miscellaneous retail
Buckinghamshire Council,30.11.2020,22.11.2020,Adults and Health,"Adults, Health and Housing",AMZNMKTPLACE,141.44,0,141.44,Activities & General Recreation,Miscellaneous retail
Buckinghamshire Council,30.11.2020,22.11.2020,Children's Services,Children's Services,DISCLOSURE & BARRING,13,0,13,Awaiting Coding,Government services
Buckinghamshire Council,30.11.2020,21.11.2020,Children's Services,Children's Services,WWW.THERANGE.CO.UK,83.93,0,83.93,Leaving Care-Grants for Care Leavers,Furniture & home furnishing
Buckinghamshire Council,30.11.2020,21.11.2020,Children's Services,Children's Services,PAYPAL,71.94,0,71.94,Sec 17: Financial Assistance,Schools
Buckinghamshire Council,30.11.2020,21.11.2020,Children's Services,Children's Services,FREEDOM PROGRAMME LIMITED,12,0,12,Sec 17: Financial Assistance,Schools
Buckinghamshire Council,30.11.2020,21.11.2020,"Planning, Growth & Sustainability",Planning Growth & Sustainability,AMZNMKTPLACE,14.98,0,14.98,Administrative Equipment & Tools,Miscellaneous retail
Buckinghamshire Council,30.11.2020,21.11.2020,Children's Services,Children's Services,NEALE'S TAXIS LIMI,26,0,26,Staff Travelling Expenses,Taxicabs & limousines
Buckinghamshire Council,30.11.2020,21.11.2020,Resources,Resources,BOOKWHEN- SOFTWARE SUB,22.8,0,22.8,Computer Consumables,Computer software stores
Buckinghamshire Council,30.11.2020,21.11.2020,Communities,Communities,AMZNMKTPLACE,39.95,0,39.95,Printing & Stationery,Miscellaneous retail
Buckinghamshire Council,30.11.2020,21.11.2020,Resources,Resources,AMAZON PRIME,7.99,0,7.99,Stationery & Office Supplies,Continuous subscriptions
Buckinghamshire Council,30.11.2020,21.11.2020,Children's Services,Children's Services,HOMEBASE,102.66,0,102.66,Awaiting Coding,Home supply warehouse stores
Buckinghamshire Council,30.11.2020,21.11.2020,Children's Services,Children's Services,THE RANGE,27.25,0,27.25,Awaiting Coding,Department stores
Buckinghamshire Council,30.11.2020,20.11.2020,Communities,Communities,GOOGLE  ADS2753042584,198.88,0,198.88,Advertising,Advertising services
Buckinghamshire Council,30.11.2020,20.11.2020,Children's Services,Children's Services,BUCKINGHAMSHIRE CNCL,-22,0,-22,Court Orders Sec 31: Miscellaneous,Government services
Buckinghamshire Council,30.11.2020,20.11.2020,Children's Services,Children's Services,AMZNMKTPLACE,95.63,0,95.63,Pocket Money,Miscellaneous retail
Buckinghamshire Council,30.11.2020,20.11.2020,Children's Services,Children's Services,AMZNMKTPLACE,21.95,0,21.95,Health & Safety Supplies & Services,Miscellaneous retail
Buckinghamshire Council,30.11.2020,20.11.2020,Deputy Chief Executive,Deputy Chief Executive,FOOD BOXES,35,0,35,Awaiting Coding,Grocery stores
Buckinghamshire Council,30.11.2020,20.11.2020,Deputy Chief Executive,Deputy Chief Executive,FOOD BOXES,35,0,35,Awaiting Coding,Grocery stores
Buckinghamshire Council,30.11.2020,20.11.2020,Deputy Chief Executive,Deputy Chief Executive,CURRYS ONLINE,274,0,274,Awaiting Coding,Electronics shops
Buckinghamshire Council,30.11.2020,20.11.2020,Children's Services,Children's Services,ARGOS LTD,205.95,0,205.95,Leaving Care-Grants for Care Leavers,Discount stores
Buckinghamshire Council,30.11.2020,20.11.2020,Communities,Communities,REGATTA,24.08,4.82,28.9,Protective Clothing & Uniforms,Family clothing shops
Buckinghamshire Council,30.11.2020,20.11.2020,"Planning, Growth & Sustainability",Planning Growth & Sustainability,AMZNMKTPLACE,80.98,0,80.98,Other Equipment and Materials,Miscellaneous retail
Buckinghamshire Council,30.11.2020,20.11.2020,"Planning, Growth & Sustainability",Planning Growth & Sustainability,IRM BRISTOL LIMITED,82.8,0,82.8,Other Equipment and Materials,Hardware stores
Buckinghamshire Council,30.11.2020,20.11.2020,Children's Services,Children's Services,LUFTHANSA,35.41,0,35.41,Sec 17: Financial Assistance,Lufthansa
Buckinghamshire Council,30.11.2020,20.11.2020,Children's Services,Children's Services,LUFTHANSA,304.21,0,304.21,Sec 17: Financial Assistance,Lufthansa
Buckinghamshire Council,30.11.2020,20.11.2020,Adults and Health,"Adults, Health and Housing",SAINSBURY'S S/MKT,24.95,0,24.95,Cleaning & Domestic Equipment,Grocery stores
Buckinghamshire Council,30.11.2020,20.11.2020,Adults and Health,"Adults, Health and Housing",FMY CHEMIST,13.93,0,13.93,Health & Safety Supplies & Services,Chemists & pharmacies
Buckinghamshire Council,30.11.2020,20.11.2020,Communities,Farnham Park,CENTURY PLASTICS,109.21,0,109.21,Maintenance of Grounds,Miscellaneous retail
Buckinghamshire Council,30.11.2020,20.11.2020,Deputy Chief Executive,Deputy Chief Executive,EB *DOMESTIC ABUSE MEN,20,0,20,"Courses, Conference and Seminar Fees",Misc business services
Buckinghamshire Council,30.11.2020,20.11.2020,Children's Services,Children's Services,AMZNMKTPLACE,17.24,3.46,20.7,Educational Equipment,Miscellaneous retail
Buckinghamshire Council,30.11.2020,20.11.2020,Deputy Chief Executive,Deputy Chief Executive,WWW.THELAWSOCIETY.ORG,328,0,328,Training Materials,Membership organisations
Buckinghamshire Council,30.11.2020,20.11.2020,Resources,Resources,WAITROSE,111.74,0,111.74,Miscellaneous (Other)  Expenses,Grocery stores
Buckinghamshire Council,30.11.2020,20.11.2020,Deputy Chief Executive,Deputy Chief Executive,ARVATO FINANCIAL SOLUT,48.56,0,48.56,Awaiting Coding,Misc business services
Buckinghamshire Council,30.11.2020,20.11.2020,Children's Services,Children's Services,AMZNMktplace,26.98,0,26.98,Awaiting Coding,Miscellaneous retail
Buckinghamshire Council,30.11.2020,20.11.2020,Adults and Health,"Adults, Health and Housing",AMAZON.CO.UK,44.99,0,44.99,Catering & Domestic Equipment,Direct sales companies
Buckinghamshire Council,30.11.2020,20.11.2020,Children's Services,Children's Services,AYLESBURY PIZZA,7.99,0,7.99,Sec 17: Financial Assistance,Fast food restaurants
Buckinghamshire Council,30.11.2020,20.11.2020,Children's Services,Children's Services,FREEDOM PROGRAMME LIMITED,24,0,24,Sec 17: Financial Assistance,Schools
Buckinghamshire Council,30.11.2020,20.11.2020,Communities,Communities,WWW.DEFIBSHOP.CO.UK,525,105,630,Administrative Equipment & Tools,Vocational & trade schools
Buckinghamshire Council,30.11.2020,20.11.2020,Children's Services,Children's Services,ARGOS LTD,26,0,26,Sec 17: Financial Assistance,Discount stores
Buckinghamshire Council,30.11.2020,20.11.2020,Children's Services,Children's Services,ARGOS LTD,17.5,0,17.5,Sec 17: Financial Assistance,Discount stores
Buckinghamshire Council,30.11.2020,20.11.2020,Children's Services,Children's Services,TRAVELODGE GB0000,41.49,0,41.49,Sec 17: Financial Assistance,Travelodge
Buckinghamshire Council,30.11.2020,20.11.2020,Children's Services,Children's Services,TRAVELODGE GB0000,48.43,0,48.43,Sec 17: Financial Assistance,Travelodge
Buckinghamshire Council,30.11.2020,20.11.2020,Children's Services,Children's Services,ARGOS LTD,-17.5,0,-17.5,Sec 17: Financial Assistance,Discount stores
Buckinghamshire Council,30.11.2020,20.11.2020,Deputy Chief Executive,Deputy Chief Executive,FACEBK EA4VXW6YV2,25,0,25,Advertising,Advertising services
Buckinghamshire Council,30.11.2020,20.11.2020,Communities,Farnham Park,HOME AND INTERIORS,25,0,25,Awaiting Coding,Drapery & upholstery shops
Buckinghamshire Council,30.11.2020,20.11.2020,Children's Services,Children's Services,AMZNMKTPLACE,22,0,22,Equipment (including storage),Miscellaneous retail
Buckinghamshire Council,30.11.2020,20.11.2020,"Planning, Growth & Sustainability",Planning Growth & Sustainability,SCREWFIX DIRECT,12.16,0,12.16,General Repairs & Maintenance,Timber & building supplies
Buckinghamshire Council,30.11.2020,20.11.2020,"Planning, Growth & Sustainability","Planning, Growth & Sustainability",LAND REGISTRY,3,0,3,Land Registry Fees,Government services
Buckinghamshire Council,30.11.2020,20.11.2020,"Planning, Growth & Sustainability","Planning, Growth & Sustainability",LAND REGISTRY,3,0,3,Land Registry Fees,Government services
Buckinghamshire Council,30.11.2020,20.11.2020,"Planning, Growth & Sustainability","Planning, Growth & Sustainability",LAND REGISTRY,3,0,3,Land Registry Fees,Government services
Buckinghamshire Council,30.11.2020,20.11.2020,"Planning, Growth & Sustainability","Planning, Growth & Sustainability",LAND REGISTRY,3,0,3,Land Registry Fees,Government services
Buckinghamshire Council,30.11.2020,20.11.2020,"Planning, Growth & Sustainability","Planning, Growth & Sustainability",LAND REGISTRY,3,0,3,Land Registry Fees,Government services
Buckinghamshire Council,30.11.2020,20.11.2020,"Planning, Growth & Sustainability","Planning, Growth & Sustainability",LAND REGISTRY,3,0,3,Land Registry Fees,Government services
Buckinghamshire Council,30.11.2020,20.11.2020,"Planning, Growth & Sustainability","Planning, Growth & Sustainability",LAND REGISTRY,3,0,3,Land Registry Fees,Government services
Buckinghamshire Council,30.11.2020,20.11.2020,"Planning, Growth & Sustainability","Planning, Growth & Sustainability",LAND REGISTRY,3,0,3,Land Registry Fees,Government services
Buckinghamshire Council,30.11.2020,20.11.2020,"Planning, Growth & Sustainability","Planning, Growth & Sustainability",LAND REGISTRY,3,0,3,Land Registry Fees,Government services
Buckinghamshire Council,30.11.2020,20.11.2020,"Planning, Growth & Sustainability","Planning, Growth & Sustainability",LAND REGISTRY,3,0,3,Land Registry Fees,Government services
Buckinghamshire Council,30.11.2020,20.11.2020,"Planning, Growth & Sustainability","Planning, Growth & Sustainability",LAND REGISTRY,3,0,3,Land Registry Fees,Government services
Buckinghamshire Council,30.11.2020,20.11.2020,Children's Services,Children's Services,DOMINO S PIZZA,42.47,0,42.47,Subsistence,Restaurants
Buckinghamshire Council,30.11.2020,20.11.2020,Communities,Communities,AO RETAIL LIMITED,41.65,8.33,49.98,General Repairs & Maintenance,Household appliance stores
Buckinghamshire Council,30.11.2020,20.11.2020,Communities,Communities,AO RETAIL LIMITED,0.02,0,0.02,General Repairs & Maintenance,Household appliance stores
Buckinghamshire Council,30.11.2020,20.11.2020,Children's Services,Children's Services,NEALES TAXIS LTD,86.4,0,86.4,Sec 17: Transport (excl to Fam.Centres),Taxicabs & limousines
Buckinghamshire Council,30.11.2020,20.11.2020,Children's Services,Children's Services,NEALES TAXIS LTD,120,0,120,Sec 17: Financial Assistance,Taxicabs & limousines
Buckinghamshire Council,30.11.2020,20.11.2020,Children's Services,Children's Services,TVLICENSING.CO.UK,-157.5,0,-157.5,Leaving Care-Grants for Care Leavers,Consultants & public relation services
Buckinghamshire Council,30.11.2020,20.11.2020,Deputy Chief Executive,Deputy Chief Executive,FOOD BOXES,35,0,35,Awaiting Coding,Grocery stores
Buckinghamshire Council,30.11.2020,19.11.2020,Deputy Chief Executive,Deputy Chief Executive,FACEBK XPJLDZSPN2,600,0,600,Advertising,Advertising services
Buckinghamshire Council,30.11.2020,19.11.2020,Deputy Chief Executive,Deputy Chief Executive,FACEBK KRNCZWSYV2,17,0,17,Advertising,Advertising services
Buckinghamshire Council,30.11.2020,19.11.2020,Children's Services,Children's Services,GIFFGAFF,25,0,25,Other Personal Needs,Phone services
Buckinghamshire Council,30.11.2020,19.11.2020,"Planning, Growth & Sustainability","Planning, Growth & Sustainability",RTPI,315,0,315,Professional Subscriptions re Employees,"Member clubs, sport, recreation & golf"
Buckinghamshire Council,30.11.2020,19.11.2020,Deputy Chief Executive,Deputy Chief Executive,FOOD BOXES,35,0,35,Awaiting Coding,Grocery stores
Buckinghamshire Council,30.11.2020,19.11.2020,Communities,Communities,WICKES BUILDING,93,0,93,Other Equipment and Materials,Timber & building supplies
Buckinghamshire Council,30.11.2020,19.11.2020,Communities,Communities,CH MORGAN,5.12,0,5.12,Other Equipment and Materials,"Architectural, engineering & surveying"
Buckinghamshire Council,30.11.2020,19.11.2020,Communities,Communities,WWW.GLASDON.COM,526.56,0,526.56,Other Equipment and Materials,Misc business services
Buckinghamshire Council,30.11.2020,19.11.2020,Communities,Communities,WWW.LSENGINEERS.CO.UK,119.64,0,119.64,Other Equipment and Materials,Hardware stores
Buckinghamshire Council,30.11.2020,19.11.2020,Communities,Communities,SCREWFIX DIRECT,166.13,0,166.13,Other Equipment and Materials,Timber & building supplies
Buckinghamshire Council,30.11.2020,19.11.2020,Communities,Communities,WWWTUDORENVIRONMENTALCOU,"1,103.12",0,"1,103.12",Other Equipment and Materials,Lawn & garden supply/nursery
Buckinghamshire Council,30.11.2020,19.11.2020,Communities,Communities,TOOLSTATION UK,137.88,0,137.88,Other Equipment and Materials,Miscellaneous retail
Buckinghamshire Council,30.11.2020,19.11.2020,Communities,Communities,WWW.THERANGE.CO.UK,8.3,1.66,9.96,Events Expenditure,Furniture & home furnishing
Buckinghamshire Council,30.11.2020,19.11.2020,Communities,Communities,WWW.THERANGE.CO.UK,3.98,0,3.98,Events Expenditure,Furniture & home furnishing
Buckinghamshire Council,30.11.2020,19.11.2020,"Planning, Growth & Sustainability",Planning Growth & Sustainability,AMAZON.CO.UK,55.67,0,55.67,Other Equipment and Materials,Direct sales companies
Buckinghamshire Council,30.11.2020,19.11.2020,Children's Services,Children's Services,ARRIVA UK BUS,67,0,67,Accomm Children Sec 20: Miscellaneous,"Buses, charter & tour"
Buckinghamshire Council,30.11.2020,19.11.2020,"Planning, Growth & Sustainability",Planning Growth & Sustainability,LIGHTING & MAINS POWER,6.94,0,6.94,Other Equipment and Materials,Household appliance stores
Buckinghamshire Council,30.11.2020,19.11.2020,Communities,Communities,ASDA STORES,4.5,0,4.5,Miscellaneous (Other)  Expenses,Grocery stores
Buckinghamshire Council,30.11.2020,19.11.2020,Children's Services,Children's Services,WWW.AAT-ORG.UK,99,0,99,Reg & Exam Fees for External Courses,Accountants & auditors
Buckinghamshire Council,30.11.2020,19.11.2020,Adults and Health,"Adults, Health and Housing",GOVNET EVENTS,325,65,390,"Courses, Conference and Seminar Fees",Membership organisations
Buckinghamshire Council,30.11.2020,19.11.2020,Children's Services,Children's Services,AMZNMKTPLACE,380,0,380,Furniture,Miscellaneous retail
Buckinghamshire Council,30.11.2020,19.11.2020,Adults and Health,"Adults, Health and Housing",AMZNMKTPLACE,8.95,0,8.95,Activities & General Recreation,Miscellaneous retail
Buckinghamshire Council,30.11.2020,19.11.2020,Children's Services,Children's Services,BUNCHES,23.25,4.65,27.9,Support for Foster Carers,Florists
Buckinghamshire Council,30.11.2020,19.11.2020,Adults and Health,"Adults, Health and Housing",AMZNMKTPLACE,47.94,0,47.94,Activities & General Recreation,Miscellaneous retail
Buckinghamshire Council,30.11.2020,19.11.2020,Adults and Health,"Adults, Health and Housing",LIDL GB,14.78,0,14.78,Activities & General Recreation,Grocery stores
Buckinghamshire Council,30.11.2020,19.11.2020,Adults and Health,"Adults, Health and Housing",WAITROSE 177,2.1,0,2.1,General Provisions (Food),Grocery stores
Buckinghamshire Council,30.11.2020,19.11.2020,Communities,Communities,ADT LEEDS CC,351.92,0,351.92,Administrative Equipment & Tools,Detective & security services
Buckinghamshire Council,30.11.2020,19.11.2020,Communities,Communities,SCREWFIX DIRECT,30.74,6.15,36.86,Protective Clothing & Uniforms,Timber & building supplies
Buckinghamshire Council,30.11.2020,19.11.2020,Communities,Communities,UKOFFICEDIRECT.CO.,178.57,35.72,214.32,"Workshop - Materials,Tools & Equipment",Stationery & office supplies stores
Buckinghamshire Council,30.11.2020,19.11.2020,Children's Services,Children's Services,TESCO STORES 2041,5.9,0,5.9,General Provisions (Food),Grocery stores
Buckinghamshire Council,30.11.2020,19.11.2020,Children's Services,Children's Services,ARROW TRANSPORT (H/W) LIM,18,0,18,Sec 17: Transport (excl to Fam.Centres),Taxicabs & limousines
Buckinghamshire Council,30.11.2020,19.11.2020,Children's Services,Children's Services,THE TAXI PEOPLE,48.5,0,48.5,Sec 17: Transport (excl to Fam.Centres),Taxicabs & limousines
Buckinghamshire Council,30.11.2020,19.11.2020,Children's Services,Children's Services,ARROW TRANSPORT (H/W) LIM,72,0,72,Sec 17: Transport (excl to Fam.Centres),Taxicabs & limousines
Buckinghamshire Council,30.11.2020,19.11.2020,Communities,Communities,AMZNMKTPLACE,49.9,0,49.9,Printing & Stationery,Miscellaneous retail
Buckinghamshire Council,30.11.2020,19.11.2020,Children's Services,Partnerships - Children's Service,AO RETAIL LIMITED,180,0,180,YOS - Direct Work,Household appliance stores
Buckinghamshire Council,30.11.2020,19.11.2020,Deputy Chief Executive,Deputy Chief Executive,FACEBK K2Q5EYWXV2,25,0,25,Advertising,Advertising services
Buckinghamshire Council,30.11.2020,19.11.2020,"Planning, Growth & Sustainability",Planning Growth & Sustainability,WWW.NEOPOST.CO.UK,"1,000.00",0,"1,000.00",General Postage,Stationery & office supplies
Buckinghamshire Council,30.11.2020,19.11.2020,Children's Services,Children's Services,ASDA SUPERSTORE,4.5,0,4.5,Cleaning Materials,Grocery stores
Buckinghamshire Council,30.11.2020,19.11.2020,Children's Services,Children's Services,ASDA SUPERSTORE,2.2,0,2.2,General Provisions (Food),Grocery stores
Buckinghamshire Council,30.11.2020,19.11.2020,Communities,Farnham Park,WICKES SLOUGH,16.4,0,16.4,General Repairs & Maintenance,Timber & building supplies
Buckinghamshire Council,30.11.2020,19.11.2020,Children's Services,Children's Services,AMZNMKTPLACE,16.99,0,16.99,Equipment (including storage),Miscellaneous retail
Buckinghamshire Council,30.11.2020,19.11.2020,Communities,Communities,WORLDOFBOOKS.COM,8.98,0,8.98,Area Teams and Materials,"Books, periodicals & newspapers"
Buckinghamshire Council,30.11.2020,19.11.2020,"Planning, Growth & Sustainability","Planning, Growth & Sustainability",WWW.PMGLTD.CO.UK,354,0,354,Miscellaneous (Other)  Expenses,Misc business services
Buckinghamshire Council,30.11.2020,19.11.2020,Children's Services,Children's Services,ARRIVA UK BUS,81,0,81,Court Orders Sec 31: Supp. for Contact,"Buses, charter & tour"
Buckinghamshire Council,30.11.2020,19.11.2020,Resources,Resources,SUMUP*MOHAMMED ISAQ,30,0,30,Staff Travelling Expenses,Taxicabs & limousines
Buckinghamshire Council,30.11.2020,19.11.2020,"Planning, Growth & Sustainability","Planning, Growth & Sustainability",LAND REGISTRY,3,0,3,Land Registry Fees,Government services
Buckinghamshire Council,30.11.2020,19.11.2020,"Planning, Growth & Sustainability","Planning, Growth & Sustainability",LAND REGISTRY,3,0,3,Land Registry Fees,Government services
Buckinghamshire Council,30.11.2020,19.11.2020,"Planning, Growth & Sustainability","Planning, Growth & Sustainability",LAND REGISTRY,3,0,3,Land Registry Fees,Government services
Buckinghamshire Council,30.11.2020,19.11.2020,Adults and Health,"Adults, Health and Housing",AMZNMKTPLACE,33.32,6.67,39.99,Other General Office Expenses,Miscellaneous retail
Buckinghamshire Council,30.11.2020,19.11.2020,Children's Services,Children's Services,TVLICENSING.CO.UK,157.5,0,157.5,Leaving Care-Grants for Care Leavers,Consultants & public relation services
Buckinghamshire Council,30.11.2020,18.11.2020,"Planning, Growth & Sustainability","Planning, Growth & Sustainability",WWW.ICO.ORG.UK,40,0,40,GDPR General Data Protection Regulation,Government services
Buckinghamshire Council,30.11.2020,18.11.2020,"Planning, Growth & Sustainability","Planning, Growth & Sustainability",HELPFUL HIRINGS,84.96,0,84.96,Specialist Equipment,"Equipment, tool, furniture hire & leasing"
Buckinghamshire Council,30.11.2020,18.11.2020,Resources,Resources,PARKING-EASTONST,2,0,2,Staff Travelling Expenses,Car parking & garages
Buckinghamshire Council,30.11.2020,18.11.2020,Children's Services,Children's Services,WWW.FURNITURECHOICE.CO,399.98,0,399.98,Furniture,Furniture & home furnishing
Buckinghamshire Council,30.11.2020,18.11.2020,"Planning, Growth & Sustainability","Planning, Growth & Sustainability",RTPI,158,0,158,Professional Subscriptions re Employees,"Member clubs, sport, recreation & golf"
Buckinghamshire Council,30.11.2020,18.11.2020,"Planning, Growth & Sustainability","Planning, Growth & Sustainability",RTPI,315,0,315,Professional Subscriptions re Employees,"Member clubs, sport, recreation & golf"
Buckinghamshire Council,30.11.2020,18.11.2020,"Planning, Growth & Sustainability","Planning, Growth & Sustainability",RTPI,315,0,315,Professional Subscriptions re Employees,"Member clubs, sport, recreation & golf"
Buckinghamshire Council,30.11.2020,18.11.2020,"Planning, Growth & Sustainability","Planning, Growth & Sustainability",RTPI,158,0,158,Professional Subscriptions re Employees,"Member clubs, sport, recreation & golf"
Buckinghamshire Council,30.11.2020,18.11.2020,"Planning, Growth & Sustainability","Planning, Growth & Sustainability",RTPI,315,0,315,Professional Subscriptions re Employees,"Member clubs, sport, recreation & golf"
Buckinghamshire Council,30.11.2020,18.11.2020,"Planning, Growth & Sustainability","Planning, Growth & Sustainability",RTPI,158,0,158,Professional Subscriptions re Employees,"Member clubs, sport, recreation & golf"
Buckinghamshire Council,30.11.2020,18.11.2020,"Planning, Growth & Sustainability","Planning, Growth & Sustainability",RTPI,315,0,315,Professional Subscriptions re Employees,"Member clubs, sport, recreation & golf"
Buckinghamshire Council,30.11.2020,18.11.2020,"Planning, Growth & Sustainability","Planning, Growth & Sustainability",RTPI,315,0,315,Professional Subscriptions re Employees,"Member clubs, sport, recreation & golf"
Buckinghamshire Council,30.11.2020,18.11.2020,"Planning, Growth & Sustainability","Planning, Growth & Sustainability",RTPI,158,0,158,Professional Subscriptions re Employees,"Member clubs, sport, recreation & golf"
Buckinghamshire Council,30.11.2020,18.11.2020,Communities,Communities,YOUNGS INTERNATIONAL LTD,10.8,2.16,12.96,Administrative Equipment & Tools,Miscellaneous retail
Buckinghamshire Council,30.11.2020,18.11.2020,Communities,Communities,YOUNGS INTERNATIONAL LTD,0.02,0,0.02,Administrative Equipment & Tools,Miscellaneous retail
Buckinghamshire Council,30.11.2020,18.11.2020,Children's Services,Children's Services,CURRYS ONLINE,229,0,229,Leaving Care-Grants for Care Leavers,Electronics shops
Buckinghamshire Council,30.11.2020,18.11.2020,Children's Services,Children's Services,ARGOS LTD,168.99,0,168.99,Leaving Care-Grants for Care Leavers,Discount stores
Buckinghamshire Council,30.11.2020,18.11.2020,Children's Services,Children's Services,ARGOS LTD,206.95,0,206.95,Leaving Care-Grants for Care Leavers,Discount stores
Buckinghamshire Council,30.11.2020,18.11.2020,Communities,Communities,ECOANOLYTES LTD,70,14,84,"Workshop - Materials,Tools & Equipment",Misc. general merchandise
Buckinghamshire Council,30.11.2020,18.11.2020,Communities,Communities,CASTLE WATER,48.76,0,48.76,Water & Sewerage - Metered Charges,Utilities
Buckinghamshire Council,30.11.2020,18.11.2020,Resources,Resources,AMZNMKTPLACE,6.64,0,6.64,Administrative Equipment & Tools,Miscellaneous retail
Buckinghamshire Council,30.11.2020,18.11.2020,Children's Services,Children's Services,ARGOS LTD,199.96,0,199.96,Awaiting Coding,Discount stores
Buckinghamshire Council,30.11.2020,18.11.2020,Children's Services,Children's Services,ARGOS LTD,60,0,60,Awaiting Coding,Discount stores
Buckinghamshire Council,30.11.2020,18.11.2020,Children's Services,Children's Services,ARGOS LTD,192.94,0,192.94,Awaiting Coding,Discount stores
Buckinghamshire Council,30.11.2020,18.11.2020,Communities,Communities,SCREWFIX DIRECT LT,40.41,0,40.41,Maintenance of Grounds,Timber & building supplies
Buckinghamshire Council,30.11.2020,18.11.2020,"Planning, Growth & Sustainability",Planning Growth & Sustainability,LOCK & KEY CENTRE,313.25,0,313.25,Miscellaneous (Other)  Expenses,Shoe repairs
Buckinghamshire Council,30.11.2020,18.11.2020,"Planning, Growth & Sustainability",Planning Growth & Sustainability,AMZNMKTPLACE,13.32,0,13.32,Other Equipment and Materials,Miscellaneous retail
Buckinghamshire Council,30.11.2020,18.11.2020,Communities,Communities,ASDA STORES,1.1,0,1.1,Purchase.of Refreshments and Food,Grocery stores
Buckinghamshire Council,30.11.2020,18.11.2020,Deputy Chief Executive,Deputy Chief Executive,FACEBK *9GWMKWWMC2,4,0,4,Advertising,Advertising services
Buckinghamshire Council,30.11.2020,18.11.2020,Children's Services,Children's Services,AMZNMKTPLACE AMAZON.CO.UK,175.99,0,175.99,Printing & Stationery,Miscellaneous retail
Buckinghamshire Council,30.11.2020,18.11.2020,Deputy Chief Executive,Deputy Chief Executive,WWW.WESTMINSTER-BRIEFI,195,39,234,"Courses, Conference and Seminar Fees",Business/secretarial school
Buckinghamshire Council,30.11.2020,18.11.2020,Children's Services,Children's Services,AMAZON.CO.UK,35,0,35,"Books, Records, Films & Oth Publications",Direct sales companies
Buckinghamshire Council,30.11.2020,18.11.2020,Resources,Resources,WWW.CIPS.ORG,206,0,206,"Courses, Conference and Seminar Fees",Membership organisations
Buckinghamshire Council,30.11.2020,18.11.2020,Communities,Communities,LOCK & KEY CENTRE,60,0,60,Awaiting Coding,Shoe repairs
Buckinghamshire Council,30.11.2020,18.11.2020,Adults and Health,"Adults, Health and Housing",AMZNMKTPLACE,69.99,0,69.99,Catering & Domestic Equipment,Miscellaneous retail
Buckinghamshire Council,30.11.2020,18.11.2020,Communities,Communities,B & Q 1124,5.85,1.17,7.02,Administrative Equipment & Tools,Home supply warehouse stores
Buckinghamshire Council,30.11.2020,18.11.2020,"Planning, Growth & Sustainability",Planning Growth & Sustainability,SCREWFIX DIR LTD,34.86,0,34.86,General Repairs & Maintenance,Timber & building supplies
Buckinghamshire Council,30.11.2020,18.11.2020,Children's Services,Children's Services,YELLOW CARS HW LTD,560,112,672,Sec 17: Transport (excl to Fam.Centres),Taxicabs & limousines
Buckinghamshire Council,30.11.2020,18.11.2020,Communities,Communities,CO-OPERATIVE FOOD,8.89,0,8.89,Administrative Equipment & Tools,Grocery stores
Buckinghamshire Council,30.11.2020,18.11.2020,"Planning, Growth & Sustainability",Planning Growth & Sustainability,WWW.CIOB.ORG.UK,-132,0,-132,Awaiting Coding,Membership organisations
Buckinghamshire Council,30.11.2020,18.11.2020,Deputy Chief Executive,Deputy Chief Executive,FACEBK AVG9DYWXV2,17,0,17,Advertising,Advertising services
Buckinghamshire Council,30.11.2020,18.11.2020,Children's Services,Children's Services,ARGOS LTD,40,0,40,Leaving Care-Grants for Care Leavers,Discount stores
Buckinghamshire Council,30.11.2020,18.11.2020,Communities,Farnham Park,DIRECT WOOD FLOORING (,307.79,0,307.79,Awaiting Coding,Floor covering stores
Buckinghamshire Council,30.11.2020,18.11.2020,Children's Services,Children's Services,ARGOS LTD,123.95,0,123.95,Equipment (including storage),Discount stores
Buckinghamshire Council,30.11.2020,18.11.2020,Children's Services,Children's Services,ARGOS LTD,42.99,0,42.99,Equipment (including storage),Discount stores
Buckinghamshire Council,30.11.2020,18.11.2020,"Planning, Growth & Sustainability",Planning Growth & Sustainability,TOOLSTATION UK,20.55,0,20.55,Materials,Miscellaneous retail
Buckinghamshire Council,30.11.2020,18.11.2020,Resources,Resources,LOOKBACK STARTER,137.64,0,137.64,Computer Consumables,Computer software stores
Buckinghamshire Council,30.11.2020,18.11.2020,Children's Services,Children's Services,NEALES TAXIS LTD,23,0,23,Staff Travelling Expenses,Taxicabs & limousines
Buckinghamshire Council,30.11.2020,18.11.2020,"Planning, Growth & Sustainability","Planning, Growth & Sustainability",HOME BARGAINS,5.94,0,5.94,Other General Office Expenses,Hardware stores
Buckinghamshire Council,30.11.2020,18.11.2020,Children's Services,Children's Services,GEN REGISTER OFFICE,28,0,28,Court Orders Sec 31: Miscellaneous,Government services
Buckinghamshire Council,30.11.2020,18.11.2020,Communities,Communities - Trading Accounts,CIVIL ENFORCEMENT,100,0,100,Vehicle Repair Recharge,Car parking & garages
Buckinghamshire Council,30.11.2020,18.11.2020,Adults and Health,"Adults, Health and Housing",AMZNMKTPLACE,60.95,12.19,73.14,Printing & Stationery,Miscellaneous retail
Buckinghamshire Council,30.11.2020,18.11.2020,Adults and Health,"Adults, Health and Housing",HOLIDAY INN AYLESB,162.5,32.5,195,Staff Travelling Expenses,"Hotels, motels & resorts"
Buckinghamshire Council,30.11.2020,18.11.2020,"Planning, Growth & Sustainability",YPS AT Spec Exp - PGS Dir,B&Q DIRECT,22,0,22,Equipment,Home supply warehouse stores
Buckinghamshire Council,30.11.2020,17.11.2020,Resources,Resources,WWW.JOHNLEWIS.COM,332.5,66.5,399,Long Service Awards,Department stores
Buckinghamshire Council,30.11.2020,17.11.2020,Children's Services,Children's Services,AMAZON.CO.UK,40.15,8.03,48.18,Activities & General Recreation,Miscellaneous retail
Buckinghamshire Council,30.11.2020,17.11.2020,Children's Services,Children's Services,WWW.FURNITURECHOICE.CO,899.99,0,899.99,Leaving Care-Grants for Care Leavers,Furniture & home furnishing
Buckinghamshire Council,30.11.2020,17.11.2020,Children's Services,Children's Services,BUCKGINHAMSHIRE COUNCI,500.36,0,500.36,Leaving Care  - Financial Assistance,Government services
Buckinghamshire Council,30.11.2020,17.11.2020,Communities,Communities,WICKES BUILDING,202.07,0,202.07,Other Equipment and Materials,Timber & building supplies
Buckinghamshire Council,30.11.2020,17.11.2020,Communities,Communities,SP * SAM TURNER & SONS,36.59,0,36.59,Other Equipment and Materials,Misc. general merchandise
Buckinghamshire Council,30.11.2020,17.11.2020,Communities,Communities,AMZNMKTPLACE,24.99,0,24.99,Other Equipment and Materials,Miscellaneous retail
Buckinghamshire Council,30.11.2020,17.11.2020,Adults and Health,"Adults, Health and Housing",BOOKER LIMITED SLOUGH,92.83,0,92.83,General Provisions (Food),Caterers
Buckinghamshire Council,30.11.2020,17.11.2020,"Planning, Growth & Sustainability",Planning Growth & Sustainability,AMZNMKTPLACE,16.99,0,16.99,Other Equipment and Materials,Miscellaneous retail
Buckinghamshire Council,30.11.2020,17.11.2020,"Planning, Growth & Sustainability",Planning Growth & Sustainability,AMZNMKTPLACE,10.99,0,10.99,Other Equipment and Materials,Miscellaneous retail
Buckinghamshire Council,30.11.2020,17.11.2020,"Planning, Growth & Sustainability",Planning Growth & Sustainability,AMAZON.CO.UK,40.78,0,40.78,Purchase.of Refreshments and Food,Direct sales companies
Buckinghamshire Council,30.11.2020,17.11.2020,Communities,Communities,BUCKGINHAMSHIRE COUNCI,23.75,0,23.75,"Trade Refuse Disposal, Cesspools & Pests",Government services
Buckinghamshire Council,30.11.2020,17.11.2020,Children's Services,Children's Services,AMAZON.CO.UK,198,0,198,Stationery & Office Supplies,Direct sales companies
Buckinghamshire Council,30.11.2020,17.11.2020,Children's Services,Children's Services,AMZNMKTPLACE,9.98,0,9.98,Printing & Stationery,Miscellaneous retail
Buckinghamshire Council,30.11.2020,17.11.2020,Resources,Resources,COMHAIRLE NAN EILEAN S,15,0,15,Miscellaneous (Other)  Expenses,Government services
Buckinghamshire Council,30.11.2020,17.11.2020,Resources,Resources,COMPANIES HOUSE,13,0,13,Awaiting Coding,Government services
Buckinghamshire Council,30.11.2020,17.11.2020,Adults and Health,"Adults, Health and Housing",TESCO STORES 5135,99.34,0,99.34,General Provisions (Food),Grocery stores
Buckinghamshire Council,30.11.2020,17.11.2020,Adults and Health,"Adults, Health and Housing",NO-FLI LTD,50.4,0,50.4,Computer Consumables,Computer software stores
Buckinghamshire Council,30.11.2020,17.11.2020,Communities,Communities,TOOLSTATION LTD,24.98,5,29.98,Protective Clothing & Uniforms,Timber & building supplies
Buckinghamshire Council,30.11.2020,17.11.2020,Children's Services,Children's Services,BUCKINGHAMSHIRE CNCL,11,0,11,Court Orders Sec 31: Supp. for Contact,Government services
Buckinghamshire Council,30.11.2020,17.11.2020,Children's Services,Children's Services,YELLOW CARS HW LTD,400,80,480,Sec 17: Transport (excl to Fam.Centres),Taxicabs & limousines
Buckinghamshire Council,30.11.2020,17.11.2020,Communities,Communities,AMZNMKTPLACE,14.15,2.83,16.98,Administrative Equipment & Tools,Miscellaneous retail
Buckinghamshire Council,30.11.2020,17.11.2020,Children's Services,Children's Services,MARKS&SPENCER PLC,20,0,20,Support for Foster Carers,Grocery stores
Buckinghamshire Council,30.11.2020,17.11.2020,Children's Services,Children's Services,THE TAXI PEOPLE,4,0,4,Sec 17: Transport (excl to Fam.Centres),Taxicabs & limousines
Buckinghamshire Council,30.11.2020,17.11.2020,Children's Services,Children's Services,TRAVELODGE GB0000,192.23,0,192.23,Sec 17: Financial Assistance,Travelodge
Buckinghamshire Council,30.11.2020,17.11.2020,Children's Services,Children's Services,THE TAXI PEOPLE,4,0,4,Sec 17: Transport (excl to Fam.Centres),Taxicabs & limousines
Buckinghamshire Council,30.11.2020,17.11.2020,Deputy Chief Executive,Deputy Chief Executive,FACEBK VGQ6JYAYV2,17,0,17,Advertising,Advertising services
Buckinghamshire Council,30.11.2020,17.11.2020,Children's Services,Children's Services,MAN MET UNI,"1,526.25",0,"1,526.25",L/Care-Cont Care 18+ H/Educ Supp Payts,Colleges & universities
Buckinghamshire Council,30.11.2020,17.11.2020,"Planning, Growth & Sustainability",Planning Growth & Sustainability,WWW.NEOPOST.CO.UK,"1,000.00",0,"1,000.00",General Postage,Stationery & office supplies
Buckinghamshire Council,30.11.2020,17.11.2020,Adults and Health,"Adults, Health and Housing",WM MORRISONS STORE,8.5,0,8.5,General Provisions (Food),Grocery stores
Buckinghamshire Council,30.11.2020,17.11.2020,Communities,Farnham Park,SAINSBURYS S/MKTS,3,0,3,Awaiting Coding,Grocery stores
Buckinghamshire Council,30.11.2020,17.11.2020,"Planning, Growth & Sustainability","Planning, Growth & Sustainability",AMZNMKTPLACE,18.97,0,18.97,Equipment,Miscellaneous retail
Buckinghamshire Council,30.11.2020,17.11.2020,Communities,Communities,AMZNMKTPLACE,7.14,0,7.14,Equipment,Miscellaneous retail
Buckinghamshire Council,30.11.2020,17.11.2020,"Planning, Growth & Sustainability","Planning, Growth & Sustainability",ARGOS LTD,49.99,0,49.99,Other General Office Expenses,Discount stores
Buckinghamshire Council,30.11.2020,17.11.2020,Adults and Health,"Adults, Health and Housing",AMZNMKTPLACE,27.16,0,27.16,Health & Safety Supplies & Services,Miscellaneous retail
Buckinghamshire Council,30.11.2020,17.11.2020,Children's Services,Children's Services,AMZNMKTPLACE,15.78,0,15.78,Stationery & Office Supplies,Miscellaneous retail
Buckinghamshire Council,30.11.2020,17.11.2020,Children's Services,Children's Services,THAMES VALLEY HOUSING,137.68,0,137.68,Court Orders Sec 31: Miscellaneous,"Hotels, motels & resorts"
Buckinghamshire Council,30.11.2020,17.11.2020,Children's Services,Children's Services,SUFFOLK COUNTY COUNCIL,33,0,33,Court Orders Sec 31: Miscellaneous,Government services
Buckinghamshire Council,30.11.2020,17.11.2020,Children's Services,Children's Services,FREEDOM PROGRAMME LIMITED,12,0,12,Court Orders Sec 31: Miscellaneous,Schools
Buckinghamshire Council,30.11.2020,17.11.2020,Resources,Resources,HOLIDAY INN AYLESB,675,0,675,"Courses, Conference and Seminar Fees","Hotels, motels & resorts"
Buckinghamshire Council,30.11.2020,17.11.2020,Communities,Communities,AMAZON.CO.UK,8.21,0,8.21,"Books, Records, Films & Oth Publications",Direct sales companies
Buckinghamshire Council,30.11.2020,17.11.2020,Communities,Communities,TVLICENSING.CO.UK,157.5,0,157.5,LKD Other Professional & Consultancy Fees,Consultants & public relation services
Buckinghamshire Council,30.11.2020,17.11.2020,Communities,Communities,TVLICENSING.CO.UK,157.5,0,157.5,LKD Other Professional & Consultancy Fees,Consultants & public relation services
Buckinghamshire Council,30.11.2020,17.11.2020,Children's Services,Children's Services,TIGER TAXIS,110,0,110,Sec 17: Transport (excl to Fam.Centres),Taxicabs & limousines
Buckinghamshire Council,30.11.2020,16.11.2020,Children's Services,Children's Services,WF *WAYFAIR 3458821424,429.98,0,429.98,Leaving Care-Grants for Care Leavers,Furniture & home furnishing
Buckinghamshire Council,30.11.2020,16.11.2020,Children's Services,Children's Services,WWW.THERANGE.CO.UK,132.88,0,132.88,Leaving Care-Grants for Care Leavers,Furniture & home furnishing
Buckinghamshire Council,30.11.2020,16.11.2020,Children's Services,Children's Services,IKEA LTD SHOP ONLINE,112.5,0,112.5,Leaving Care-Grants for Care Leavers,Furniture & home furnishing
Buckinghamshire Council,30.11.2020,16.11.2020,Children's Services,Children's Services,SP * LAURA JAMES HOME,263.98,0,263.98,Leaving Care-Grants for Care Leavers,Furniture & home furnishing
Buckinghamshire Council,30.11.2020,16.11.2020,Communities,Communities,SCREWFIX DIRECT,-41.98,0,-41.98,Other Equipment and Materials,Timber & building supplies
Buckinghamshire Council,30.11.2020,16.11.2020,Resources,Resources,C2E762600057T UKVI,"2,199.00",0,"2,199.00",Professional Services (non curriculum) - External,Government services
Buckinghamshire Council,30.11.2020,16.11.2020,"Planning, Growth & Sustainability","Planning, Growth & Sustainability",LAND REGISTRY,3,0,3,Bed & Breakfast,Government services
Buckinghamshire Council,30.11.2020,16.11.2020,"Planning, Growth & Sustainability","Planning, Growth & Sustainability",LAND REGISTRY,3,0,3,Bed & Breakfast,Government services
Buckinghamshire Council,30.11.2020,16.11.2020,Communities,Communities,KINGFISHER LEISUREWEAR LT,41.72,0,41.72,Protective Clothing & Uniforms,Men & womens clothing shops
Buckinghamshire Council,30.11.2020,16.11.2020,Children's Services,Children's Services,BUCKINGHAMSHIRE CNCL,11,0,11,Court Orders Sec 31: Miscellaneous,Government services
Buckinghamshire Council,30.11.2020,16.11.2020,Children's Services,Children's Services,TRAINLINE,19.95,0,19.95,Court Orders Sec 31: Miscellaneous,Passenger railways
Buckinghamshire Council,30.11.2020,16.11.2020,Adults and Health,"Adults, Health and Housing",ASDA SUPERSTORE,10.27,0,10.27,General Provisions (Food),Grocery stores
Buckinghamshire Council,30.11.2020,16.11.2020,"Planning, Growth & Sustainability",Planning Growth & Sustainability,SCREWFIX AYLESBURY,37.98,0,37.98,General Repairs & Maintenance,Timber & building supplies
Buckinghamshire Council,30.11.2020,16.11.2020,Children's Services,Children's Services,AMAZON.CO.UK,7.99,0,7.99,Printing & Stationery,Direct sales companies
Buckinghamshire Council,30.11.2020,16.11.2020,Children's Services,Children's Services,ABC TAXIS,21,0,21,Court Orders Sec 31: Transport to School,Taxicabs & limousines
Buckinghamshire Council,30.11.2020,16.11.2020,Children's Services,Children's Services,ABC TAXIS,31,0,31,Court Orders Sec 31: Transport to School,Taxicabs & limousines
Buckinghamshire Council,30.11.2020,16.11.2020,Children's Services,Children's Services,ABC TAXIS,31,0,31,Court Orders Sec 31: Transport to School,Taxicabs & limousines
Buckinghamshire Council,30.11.2020,16.11.2020,Children's Services,Children's Services,ABC TAXIS,31,0,31,Court Orders Sec 31: Transport to School,Taxicabs & limousines
Buckinghamshire Council,30.11.2020,16.11.2020,Children's Services,Children's Services,ABC TAXIS,21,0,21,Court Orders Sec 31: Transport to School,Taxicabs & limousines
Buckinghamshire Council,30.11.2020,16.11.2020,Children's Services,Children's Services,ABC TAXIS,31,0,31,Court Orders Sec 31: Transport to School,Taxicabs & limousines
Buckinghamshire Council,30.11.2020,16.11.2020,Children's Services,Children's Services,ARRIVA UK BUS,49,0,49,Accomm Children Sec 20: Miscellaneous,"Buses, charter & tour"
Buckinghamshire Council,30.11.2020,16.11.2020,Communities,Communities,Amazon.co.uk,47.88,0,47.88,Stationery & Office Supplies,Direct sales companies
Buckinghamshire Council,30.11.2020,16.11.2020,Adults and Health,"Adults, Health and Housing",MARTIN MCCOLL,3.99,0,3.99,General Provisions (Food),Misc Food stores
Buckinghamshire Council,30.11.2020,16.11.2020,Adults and Health,"Adults, Health and Housing",AMZNMKTPLACE,12.57,0,12.57,Stationery & Office Supplies,Miscellaneous retail
Buckinghamshire Council,30.11.2020,16.11.2020,Communities,Communities,DEMCO EUROPE,"1,257.60",0,"1,257.60",Furniture,Office & commercial furniture
Buckinghamshire Council,30.11.2020,16.11.2020,Resources,Resources,AMZNMKTPLACE,12.63,0,12.63,Stationery & Office Supplies,Miscellaneous retail
Buckinghamshire Council,30.11.2020,16.11.2020,Children's Services,Children's Services,TESCO STORES 2041,3.4,0,3.4,General Provisions (Food),Grocery stores
Buckinghamshire Council,30.11.2020,16.11.2020,Deputy Chief Executive,Deputy Chief Executive,MIRO.COM,68.17,0,68.17,Computer Software Licences & Purchase,"Programming, data processing & system design"
Buckinghamshire Council,30.11.2020,16.11.2020,Communities,Partnerships - Communities,WWW.VOUCHEREXPRESS.CO.,75,0,75,Awaiting Coding,"Gift, card & novelty shops"
Buckinghamshire Council,30.11.2020,16.11.2020,"Planning, Growth & Sustainability","Planning, Growth & Sustainability",CHARTERED INSTITUTE OF EN,232,0,232,Awaiting Coding,Charitable organisations
Buckinghamshire Council,30.11.2020,16.11.2020,Children's Services,Children's Services,ARGOS LTD,239.99,0,239.99,Equipment (including storage),Discount stores
Buckinghamshire Council,30.11.2020,16.11.2020,"Planning, Growth & Sustainability","Planning, Growth & Sustainability",GEN REGISTER OFFICE,14,0,14,Burial Costs,Government services
Buckinghamshire Council,30.11.2020,16.11.2020,Adults and Health,"Adults, Health and Housing",TESCO STORES 4395,30.44,0,30.44,General Provisions (Food),Grocery stores
Buckinghamshire Council,30.11.2020,16.11.2020,Children's Services,Children's Services,THE TAXI PEOPLE,16.8,0,16.8,Sec 17: Financial Assistance,Taxicabs & limousines
Buckinghamshire Council,30.11.2020,16.11.2020,Children's Services,Children's Services,BUCKINGHAMSHIRE CNCL,22,0,22,Court Orders Sec 31: Miscellaneous,Government services
Buckinghamshire Council,30.11.2020,16.11.2020,Communities,Communities - Trading Accounts,DVLA VEHICLE TAX,152.5,0,152.5,Vehicle Taxation Costs,Tax payments
Buckinghamshire Council,30.11.2020,16.11.2020,Communities,Communities - Trading Accounts,DVLA VEHICLE TAX,167.5,0,167.5,Vehicle Taxation Costs,Tax payments
Buckinghamshire Council,30.11.2020,16.11.2020,Communities,Communities - Trading Accounts,DVLA VEHICLE TAX,272.5,0,272.5,Vehicle Taxation Costs,Tax payments
Buckinghamshire Council,30.11.2020,16.11.2020,Communities,Communities - Trading Accounts,DVLA VEHICLE TAX,267.5,0,267.5,Vehicle Taxation Costs,Tax payments
Buckinghamshire Council,30.11.2020,16.11.2020,Communities,Communities - Trading Accounts,DVLA VEHICLE TAX,167.5,0,167.5,Vehicle Taxation Costs,Tax payments
Buckinghamshire Council,30.11.2020,16.11.2020,Communities,Communities - Trading Accounts,DVLA VEHICLE TAX,167.5,0,167.5,Vehicle Taxation Costs,Tax payments
Buckinghamshire Council,30.11.2020,16.11.2020,Communities,Communities - Trading Accounts,DVLA VEHICLE TAX,167.5,0,167.5,Vehicle Taxation Costs,Tax payments
Buckinghamshire Council,30.11.2020,16.11.2020,Communities,Communities - Trading Accounts,DVLA VEHICLE TAX,267.5,0,267.5,Vehicle Taxation Costs,Tax payments
Buckinghamshire Council,30.11.2020,16.11.2020,Communities,Communities - Trading Accounts,DVLA VEHICLE TAX,167.5,0,167.5,Vehicle Taxation Costs,Tax payments
Buckinghamshire Council,30.11.2020,16.11.2020,Communities,Communities - Trading Accounts,DVLA VEHICLE TAX,267.5,0,267.5,Vehicle Taxation Costs,Tax payments
Buckinghamshire Council,30.11.2020,16.11.2020,Communities,Communities - Trading Accounts,DVLA VEHICLE TAX,167.5,0,167.5,Vehicle Taxation Costs,Tax payments
Buckinghamshire Council,30.11.2020,16.11.2020,Communities,Communities - Trading Accounts,DVLA VEHICLE TAX,167.5,0,167.5,Vehicle Taxation Costs,Tax payments
Buckinghamshire Council,30.11.2020,16.11.2020,Communities,Communities - Trading Accounts,DVLA VEHICLE TAX,152.5,0,152.5,Vehicle Taxation Costs,Tax payments
Buckinghamshire Council,30.11.2020,16.11.2020,Children's Services,Children's Services,AMZNMKTPLACE,38.91,0,38.91,Activities & General Recreation,Miscellaneous retail
Buckinghamshire Council,30.11.2020,16.11.2020,Communities,Communities,TVLICENSING.CO.UK,157.5,0,157.5,Administrative Equipment & Tools,Consultants & public relation services
Buckinghamshire Council,30.11.2020,16.11.2020,Communities,Communities,PREMIER FARNELL,39.13,0,39.13,Administrative Equipment & Tools,Electrical parts & equipment
Buckinghamshire Council,30.11.2020,16.11.2020,Deputy Chief Executive,Deputy Chief Executive,PAYPAL,60,0,60,LKD Other Professional & Consultancy Fees,Professional services
Buckinghamshire Council,30.11.2020,16.11.2020,Deputy Chief Executive,Deputy Chief Executive,PAYPAL,108,0,108,LKD Other Professional & Consultancy Fees,Professional services
Buckinghamshire Council,30.11.2020,15.11.2020,Communities,Communities,PAYPAL,80.85,16.17,97.02,"Workshop - Materials,Tools & Equipment",Chemical products
Buckinghamshire Council,30.11.2020,15.11.2020,"Planning, Growth & Sustainability",Planning Growth & Sustainability,SGS ENGINEERING  UK  L,119.99,0,119.99,Other Equipment and Materials,Furniture & home furnishing
Buckinghamshire Council,30.11.2020,15.11.2020,Children's Services,Children's Services,AMAZON.CO.UK,10.99,0,10.99,Printing & Stationery,Miscellaneous retail
Buckinghamshire Council,30.11.2020,15.11.2020,Communities,Communities,WILKO RETAIL LIMITED,5,0,5,Administrative Equipment & Tools,Misc. general merchandise
Buckinghamshire Council,30.11.2020,15.11.2020,Deputy Chief Executive,Deputy Chief Executive,WP ENGINE,23.57,0,23.57,Computer Software Licences & Purchase,"Programming, data processing & system design"
Buckinghamshire Council,30.11.2020,15.11.2020,Adults and Health,"Adults, Health and Housing",AMZNMKTPLACE,115.66,0,115.66,Activities & General Recreation,Miscellaneous retail
Buckinghamshire Council,30.11.2020,15.11.2020,Adults and Health,"Adults, Health and Housing",AMZNMKTPLACE,23.99,0,23.99,Miscellaneous (Other)  Expenses,Miscellaneous retail
Buckinghamshire Council,30.11.2020,15.11.2020,Adults and Health,"Adults, Health and Housing",HOLIDAY INN AYLESB,325,65,390,Staff Travelling Expenses,"Hotels, motels & resorts"
Buckinghamshire Council,30.11.2020,14.11.2020,Children's Services,Children's Services,ARGOS LTD,-200,0,-200,Leaving Care-Grants for Care Leavers,Discount stores
Buckinghamshire Council,30.11.2020,14.11.2020,Adults and Health,"Adults, Health and Housing",AMZNMKTPLACE,76.99,0,76.99,Other Equipment and Materials,Miscellaneous retail
Buckinghamshire Council,30.11.2020,14.11.2020,Children's Services,Children's Services,AMZNMKTPLACE,39.98,0,39.98,Furniture,Miscellaneous retail
Buckinghamshire Council,30.11.2020,14.11.2020,Resources,Resources,MAILCHIMP,29.21,0,29.21,Stationery & Office Supplies,Continuous subscriptions
Buckinghamshire Council,30.11.2020,14.11.2020,Adults and Health,"Adults, Health and Housing",NEALES TAXIS LTD,20,0,20,Staff Travelling Expenses,Taxicabs & limousines
Buckinghamshire Council,30.11.2020,14.11.2020,Children's Services,Children's Services,AMAZON PRIME,7.99,0,7.99,Payments - Other Bodies,Continuous subscriptions
Buckinghamshire Council,30.11.2020,14.11.2020,Resources,Resources,CLOUDFLARE,160.47,0,160.47,Computer Software Licences & Purchase,Misc business services
Buckinghamshire Council,30.11.2020,13.11.2020,Deputy Chief Executive,Deputy Chief Executive,FOOD BOXES,35,0,35,Other Personal Needs,Grocery stores
Buckinghamshire Council,30.11.2020,13.11.2020,Deputy Chief Executive,Deputy Chief Executive,FOOD BOXES,35,0,35,Other Personal Needs,Grocery stores
Buckinghamshire Council,30.11.2020,13.11.2020,Deputy Chief Executive,Deputy Chief Executive,FOOD BOXES,35,0,35,Other Personal Needs,Grocery stores
Buckinghamshire Council,30.11.2020,13.11.2020,Children's Services,Children's Services,AMAZON.CO.UK,69.56,0,69.56,L/Care-Cont Care 18+ H/Educ Supp Payts,Direct sales companies
Buckinghamshire Council,30.11.2020,13.11.2020,Children's Services,Children's Services,AO RETAIL LIMITED,424,0,424,Leaving Care  - Financial Assistance,Household appliance stores
Buckinghamshire Council,30.11.2020,13.11.2020,Children's Services,Children's Services,ARGOS LTD,-3.95,0,-3.95,Leaving Care-Grants for Care Leavers,Discount stores
Buckinghamshire Council,30.11.2020,13.11.2020,Communities,Communities,WWW.CONTEGOSAFETY.CO.U,185.88,0,185.88,Protective Clothing & Uniforms,Construction materials
Buckinghamshire Council,30.11.2020,13.11.2020,Communities,Communities,ADDEX,583.76,0,583.76,Other Equipment and Materials,Timber & building supplies
Buckinghamshire Council,30.11.2020,13.11.2020,Adults and Health,"Adults, Health and Housing",REPLACEMENT KEYS LTD,45,0,45,Awaiting Coding,Misc. general merchandise
Buckinghamshire Council,30.11.2020,13.11.2020,Children's Services,Children's Services,FREEDOM PROGRAMME LIMITED,12,0,12,Sec 17: Financial Assistance,Schools
Buckinghamshire Council,30.11.2020,13.11.2020,Communities,Communities,MANOR SIGNS,732.84,0,732.84,Maintenance of Grounds,Misc Durable goods
Buckinghamshire Council,30.11.2020,13.11.2020,"Planning, Growth & Sustainability",Planning Growth & Sustainability,HOMEBASE,116.65,23.33,139.98,General Repairs & Maintenance,Home supply warehouse stores
Buckinghamshire Council,30.11.2020,13.11.2020,"Planning, Growth & Sustainability",Planning Growth & Sustainability,HOMEBASE,0.02,0,0.02,General Repairs & Maintenance,Home supply warehouse stores
Buckinghamshire Council,30.11.2020,13.11.2020,Adults and Health,"Adults, Health and Housing",SAINSBURY'S S/MKT,32.3,0,32.3,Activities & General Recreation,Grocery stores
Buckinghamshire Council,30.11.2020,13.11.2020,Communities,Farnham Park,CENTURY PLASTICS,11.94,0,11.94,Maintenance of Grounds,Miscellaneous retail
Buckinghamshire Council,30.11.2020,13.11.2020,Deputy Chief Executive,Deputy Chief Executive,FACEBK *7C8NHWSMC2,25,0,25,Project Work and Project Management Costs,Advertising services
Buckinghamshire Council,30.11.2020,13.11.2020,Adults and Health,"Adults, Health and Housing",SAINSBURYS S/MKTS,6.75,0,6.75,General Provisions (Food),Grocery stores
Buckinghamshire Council,30.11.2020,13.11.2020,Children's Services,Children's Services,ASDA SUPERSTORE,314.92,0,314.92,Cleaning & Domestic Equipment,Grocery stores
Buckinghamshire Council,30.11.2020,13.11.2020,"Planning, Growth & Sustainability","Planning, Growth & Sustainability",AMZNMKTPLACE,66.78,13.36,80.14,Advertising,Miscellaneous retail
Buckinghamshire Council,30.11.2020,13.11.2020,Adults and Health,"Adults, Health and Housing",AMZNMKTPLACE,7.99,0,7.99,Catering & Domestic Equipment,Miscellaneous retail
Buckinghamshire Council,30.11.2020,13.11.2020,Communities,Partnerships - Communities,UK COACHING,470,0,470,Miscellaneous (Other)  Expenses,Computer software stores
Buckinghamshire Council,30.11.2020,13.11.2020,Children's Services,Children's Services,ARRIVA UK BUS,72.8,0,72.8,Court Orders Sec 31: Miscellaneous,"Buses, charter & tour"
Buckinghamshire Council,30.11.2020,13.11.2020,Communities,Communities,BRITISHPARKING.CO.UK,109.2,0,109.2,Subscriptions to National Bodies,Membership organisations
Buckinghamshire Council,30.11.2020,13.11.2020,Adults and Health,"Adults, Health and Housing",AMZNMKTPLACE,99.99,0,99.99,Furniture,Miscellaneous retail
Buckinghamshire Council,30.11.2020,13.11.2020,Children's Services,Children's Services,AMZNMKTPLACE,8.99,0,8.99,Other Equipment and Materials,Miscellaneous retail
Buckinghamshire Council,30.11.2020,13.11.2020,Children's Services,Children's Services,TESCO STORES 6747,2.3,0,2.3,General Provisions (Food),Grocery stores
Buckinghamshire Council,30.11.2020,13.11.2020,Communities,Communities,AMAZON.CO.UK,13.49,0,13.49,Equipment,Direct sales companies
Buckinghamshire Council,30.11.2020,13.11.2020,Resources,Resources,RICS COM GBP CYBS,178.8,0,178.8,Continuing Professional Development,Membership organisations
Buckinghamshire Council,30.11.2020,13.11.2020,"Planning, Growth & Sustainability","Planning, Growth & Sustainability",LAND REGISTRY,3,0,3,Land Registry Fees,Government services
Buckinghamshire Council,30.11.2020,12.11.2020,Adults and Health,"Adults, Health and Housing",TESCO SUBSCRIPTION,7.99,0,7.99,General Provisions (Food),Continuous subscriptions
Buckinghamshire Council,30.11.2020,12.11.2020,Children's Services,Children's Services,ARGOS LTD,109.98,0,109.98,Printing & Stationery,Discount stores
Buckinghamshire Council,30.11.2020,12.11.2020,"Planning, Growth & Sustainability","Planning, Growth & Sustainability",R H ENVIRONMENTAL LTD,60,12,72,Computer Consumables,Computer software stores
Buckinghamshire Council,30.11.2020,12.11.2020,Deputy Chief Executive,Deputy Chief Executive,CURRYS ONLINE,191.65,38.33,229.98,Other Personal Needs,Electronics shops
Buckinghamshire Council,30.11.2020,12.11.2020,Deputy Chief Executive,Deputy Chief Executive,CURRYS ONLINE,0.01,0,0.01,Other Personal Needs,Electronics shops
Buckinghamshire Council,30.11.2020,12.11.2020,Deputy Chief Executive,Deputy Chief Executive,FOOD BOXES,35,0,35,Other Personal Needs,Grocery stores
Buckinghamshire Council,30.11.2020,12.11.2020,Children's Services,Children's Services,ARRIVA UK BUS,-66,0,-66,Accomm Children Sec 20: Miscellaneous,"Buses, charter & tour"
Buckinghamshire Council,30.11.2020,12.11.2020,Children's Services,Children's Services,ENGLISHTYPE,29.95,0,29.95,Computer Consumables,Computer software stores
Buckinghamshire Council,30.11.2020,12.11.2020,Children's Services,Children's Services,ROYAL MAIL ONLINE SHOP,74,0,74,General Postage,Postal services
Buckinghamshire Council,30.11.2020,12.11.2020,Communities,Communities,TLC SOUTHERN,24.71,0,24.71,Administrative Equipment & Tools,Household appliance stores
Buckinghamshire Council,30.11.2020,12.11.2020,Communities,Communities,B & Q 1124,10,2,12,Materials,Home supply warehouse stores
Buckinghamshire Council,30.11.2020,12.11.2020,Communities,Communities,AMZNMKTPLACE,19.99,0,19.99,Protective Clothing & Uniforms,Miscellaneous retail
Buckinghamshire Council,30.11.2020,12.11.2020,Adults and Health,"Adults, Health and Housing",AMZNMKTPLACE AMAZON.CO.UK,77.59,0,77.59,Other Equipment and Materials,Miscellaneous retail
Buckinghamshire Council,30.11.2020,12.11.2020,Adults and Health,"Adults, Health and Housing",POST OFFICE COUNTER,13.68,0,13.68,General Postage,Postal services
Buckinghamshire Council,30.11.2020,12.11.2020,Adults and Health,"Adults, Health and Housing",AMZNMKTPLACE,64.77,0,64.77,Security & Safety Supplies & Equipment,Miscellaneous retail
Buckinghamshire Council,30.11.2020,12.11.2020,"Planning, Growth & Sustainability",Planning Growth & Sustainability,AMZNMKTPLACE,20.91,0,20.91,General Repairs & Maintenance,Miscellaneous retail
Buckinghamshire Council,30.11.2020,12.11.2020,"Planning, Growth & Sustainability","Planning, Growth & Sustainability",PORTAS AGENCY,350,0,350,LKD Other Professional & Consultancy Fees,Consultants & public relation services
Buckinghamshire Council,30.11.2020,12.11.2020,Adults and Health,"Adults, Health and Housing",ARGOS LTD,20.99,0,20.99,Activities & General Recreation,Discount stores
Buckinghamshire Council,30.11.2020,12.11.2020,Children's Services,Children's Services,AMAZON.CO.UK,28.81,0,28.81,Other Personal Needs,Miscellaneous retail
Buckinghamshire Council,30.11.2020,12.11.2020,Children's Services,Children's Services,AMAZON.CO.UK,57.51,0,57.51,Cleaning Materials,Direct sales companies
Buckinghamshire Council,30.11.2020,12.11.2020,"Planning, Growth & Sustainability","Planning, Growth & Sustainability",SSE ELECTRICITY,40,0,40,Miscellaneous (Other)  Expenses,Utilities
Buckinghamshire Council,30.11.2020,12.11.2020,"Planning, Growth & Sustainability","Planning, Growth & Sustainability",SSE ELECTRICITY,60,0,60,Miscellaneous (Other)  Expenses,Utilities
Buckinghamshire Council,30.11.2020,12.11.2020,Adults and Health,"Adults, Health and Housing",AMZNMKTPLACE,62.91,0,62.91,Catering & Domestic Equipment,Miscellaneous retail
Buckinghamshire Council,30.11.2020,12.11.2020,Communities,Communities,WM MORRISONS STORE,23,0,23,Administrative Equipment & Tools,Grocery stores
Buckinghamshire Council,30.11.2020,12.11.2020,Children's Services,Children's Services,MAILCHIMP,153.21,0,153.21,Service Development,Continuous subscriptions
Buckinghamshire Council,30.11.2020,12.11.2020,Communities,Communities,AMAZON.CO.UK,17.59,0,17.59,General Repairs & Maintenance,Direct sales companies
Buckinghamshire Council,30.11.2020,12.11.2020,Adults and Health,"Adults, Health and Housing",ARGOS LTD,79,0,79,Furniture,Discount stores
Buckinghamshire Council,30.11.2020,12.11.2020,Children's Services,Partnerships - Children's Service,AO RETAIL LIMITED,180,0,180,YOS - Direct Work,Household appliance stores
Buckinghamshire Council,30.11.2020,12.11.2020,"Planning, Growth & Sustainability",Planning Growth & Sustainability,WWW.NEOPOST.CO.UK,"1,000.00",0,"1,000.00",General Postage,Stationery & office supplies
Buckinghamshire Council,30.11.2020,12.11.2020,"Planning, Growth & Sustainability",Planning Growth & Sustainability,ST JOHN AMBULANCE,65.28,0,65.28,General Repairs & Maintenance,Charitable organisations
Buckinghamshire Council,30.11.2020,12.11.2020,Children's Services,Children's Services,WILKO RETAIL LIMITED,1.5,0,1.5,Other Equipment and Materials,Misc. general merchandise
Buckinghamshire Council,30.11.2020,12.11.2020,Communities,Farnham Park,WICKES SLOUGH,16.5,0,16.5,General Repairs & Maintenance,Timber & building supplies
Buckinghamshire Council,30.11.2020,12.11.2020,Communities,Farnham Park,Arco Limited (SAP),30,6,36,Awaiting Coding,Misc Industrial supplies
Buckinghamshire Council,30.11.2020,12.11.2020,Communities,Farnham Park,TP SLOUGH,318.28,63.66,381.94,General Repairs & Maintenance,Timber & building supplies
Buckinghamshire Council,30.11.2020,12.11.2020,Resources,Resources,FACEBK *XX37CYJQR2,60.46,0,60.46,Advertising,Advertising services
Buckinghamshire Council,30.11.2020,12.11.2020,Resources,Resources,FACEBK *92FU2W6742,106.53,0,106.53,Advertising,Advertising services
Buckinghamshire Council,30.11.2020,12.11.2020,Children's Services,Children's Services,AMAZON.CO.UK,119,0,119,Court Orders Sec 31: Dir Work w Children,Miscellaneous retail
Buckinghamshire Council,30.11.2020,12.11.2020,"Planning, Growth & Sustainability","Planning, Growth & Sustainability",LAND REGISTRY,3,0,3,Land Registry Fees,Government services
Buckinghamshire Council,30.11.2020,12.11.2020,"Planning, Growth & Sustainability","Planning, Growth & Sustainability",LAND REGISTRY,3,0,3,Land Registry Fees,Government services
Buckinghamshire Council,30.11.2020,12.11.2020,"Planning, Growth & Sustainability","Planning, Growth & Sustainability",LAND REGISTRY,3,0,3,Land Registry Fees,Government services
Buckinghamshire Council,30.11.2020,12.11.2020,"Planning, Growth & Sustainability","Planning, Growth & Sustainability",LAND REGISTRY,6,0,6,Land Registry Fees,Government services
Buckinghamshire Council,30.11.2020,12.11.2020,"Planning, Growth & Sustainability","Planning, Growth & Sustainability",LAND REGISTRY,6,0,6,Land Registry Fees,Government services
Buckinghamshire Council,30.11.2020,12.11.2020,"Planning, Growth & Sustainability","Planning, Growth & Sustainability",AMAZON.CO.UK,9.04,0,9.04,Stationery & Office Supplies,Direct sales companies
Buckinghamshire Council,30.11.2020,12.11.2020,Adults and Health,"Adults, Health and Housing",AMAZON PRIME,7.99,0,7.99,Activities & General Recreation,Continuous subscriptions
Buckinghamshire Council,30.11.2020,12.11.2020,Children's Services,Children's Services,AMAZON.CO.UK,12.46,0,12.46,"Books, Records, Films & Oth Publications",Miscellaneous retail
Buckinghamshire Council,30.11.2020,12.11.2020,"Planning, Growth & Sustainability","Planning, Growth & Sustainability",RICS COM GBP CYBS,78,0,78,Continuing Professional Development,Membership organisations
Buckinghamshire Council,30.11.2020,12.11.2020,"Planning, Growth & Sustainability","Planning, Growth & Sustainability",RICS COM GBP CYBS,214.8,0,214.8,Continuing Professional Development,Membership organisations
Buckinghamshire Council,30.11.2020,12.11.2020,"Planning, Growth & Sustainability","Planning, Growth & Sustainability",PROCONFERENCES.COM,130.8,0,130.8,Continuing Professional Development,Colleges & universities
Buckinghamshire Council,30.11.2020,12.11.2020,Adults and Health,"Adults, Health and Housing",ARGOS LTD,69.99,0,69.99,Awaiting Coding,Discount stores
Buckinghamshire Council,30.11.2020,12.11.2020,Adults and Health,"Adults, Health and Housing",AMZ*ANYTHING 4 HOME,-33.32,-6.67,-39.99,Other General Office Expenses,Miscellaneous retail
Buckinghamshire Council,30.11.2020,12.11.2020,Communities,Communities,AMAZON.CO.UK,11.98,0,11.98,"Books, Records, Films & Oth Publications",Direct sales companies
Buckinghamshire Council,30.11.2020,12.11.2020,Children's Services,Children's Services,ARGOS LTD,324.99,0,324.99,Leaving Care-Grants for Care Leavers,Discount stores
Buckinghamshire Council,30.11.2020,12.11.2020,Children's Services,Children's Services,ARGOS LTD,387.44,0,387.44,Leaving Care-Grants for Care Leavers,Discount stores
Buckinghamshire Council,30.11.2020,12.11.2020,Children's Services,Children's Services,PREMIER INN44537360,629,0,629,Sec 17: Financial Assistance,Premier Inn
Buckinghamshire Council,30.11.2020,11.11.2020,Children's Services,Children's Services,SCHOOLGATEWA,105,0,105,General Provisions (Food),Colleges & universities
Buckinghamshire Council,30.11.2020,11.11.2020,"Planning, Growth & Sustainability","Planning, Growth & Sustainability",RTPI,315,0,315,Professional Subscriptions re Employees,"Member clubs, sport, recreation & golf"
Buckinghamshire Council,30.11.2020,11.11.2020,Children's Services,Children's Services,ASDA GEORGE COM LEEDS,54.5,0,54.5,Leaving Care-Grants for Care Leavers,Grocery stores
Buckinghamshire Council,30.11.2020,11.11.2020,Children's Services,Children's Services,ARGOS LTD,-91.99,0,-91.99,Leaving Care-Grants for Care Leavers,Discount stores
Buckinghamshire Council,30.11.2020,11.11.2020,Children's Services,Children's Services,TAXIPAY TAXI FARE,196,0,196,Court Orders Sec 31: Miscellaneous,Taxicabs & limousines
Buckinghamshire Council,30.11.2020,11.11.2020,Children's Services,Children's Services,POST OFFICE COUNTER,7.5,0,7.5,General Postage,Postal services
Buckinghamshire Council,30.11.2020,11.11.2020,Children's Services,Children's Services,FREEDOM PROGRAMME LIMITED,12,0,12,Sec 17: Financial Assistance,Schools
Buckinghamshire Council,30.11.2020,11.11.2020,Adults and Health,"Adults, Health and Housing",ASDA SUPERSTORE,7.5,0,7.5,General Provisions (Food),Grocery stores
Buckinghamshire Council,30.11.2020,11.11.2020,"Planning, Growth & Sustainability",Planning Growth & Sustainability,SCREWFIX DIRECT,66.65,13.33,79.98,Security & Safety Supplies & Equipment,Timber & building supplies
Buckinghamshire Council,30.11.2020,11.11.2020,"Planning, Growth & Sustainability",Planning Growth & Sustainability,BPFONLINE.CO.UK,33.9,0,33.9,General Repairs & Maintenance,Misc commercial machines equipment
Buckinghamshire Council,30.11.2020,11.11.2020,Children's Services,Children's Services,ABC TAXIS,140,0,140,Court Orders Sec 31: Supp. for Contact,Taxicabs & limousines
Buckinghamshire Council,30.11.2020,11.11.2020,Children's Services,Children's Services,AMZNMKTPLACE,23.18,0,23.18,Sec 17: Miscellaneous,Miscellaneous retail
Buckinghamshire Council,30.11.2020,11.11.2020,Children's Services,Children's Services,KWIKSURVEYS,187.06,0,187.06,Project Funding,"Computers, peripherals & software"
Buckinghamshire Council,30.11.2020,11.11.2020,Resources,Resources,THE LAW SOCIETY,52.8,0,52.8,"Books, Records, Films & Oth Publications",Book stores
Buckinghamshire Council,30.11.2020,11.11.2020,Resources,Resources,SLACK T181RTHAL,50.4,0,50.4,Computer Consumables,Computer software stores
Buckinghamshire Council,30.11.2020,11.11.2020,Adults and Health,"Adults, Health and Housing",WAITROSE 177,32.49,0,32.49,General Provisions (Food),Grocery stores
Buckinghamshire Council,30.11.2020,11.11.2020,Adults and Health,"Adults, Health and Housing",AMZN MKTP UK,8.24,0,8.24,"Books, Records, Films & Oth Publications",Book stores
Buckinghamshire Council,30.11.2020,11.11.2020,Adults and Health,"Adults, Health and Housing",AMZNMKTPLACE,10.47,0,10.47,Stationery & Office Supplies,Miscellaneous retail
Buckinghamshire Council,30.11.2020,11.11.2020,Communities,Communities,JAYDEE LIVING,64.62,0,64.62,Administrative Equipment & Tools,Misc Durable goods
Buckinghamshire Council,30.11.2020,11.11.2020,Children's Services,Children's Services,NEALES TAXIS LTD,18,0,18,Sec 17: Transport (excl to Fam.Centres),Taxicabs & limousines
Buckinghamshire Council,30.11.2020,11.11.2020,Adults and Health,"Adults, Health and Housing",AMZNMKTPLACE,31.84,0,31.84,Computer Consumables,Miscellaneous retail
Buckinghamshire Council,30.11.2020,11.11.2020,Adults and Health,"Adults, Health and Housing",POST OFFICE,7.99,0,7.99,General Provisions (Food),Misc Food stores
Buckinghamshire Council,30.11.2020,11.11.2020,Communities,Farnham Park,WICKES SLOUGH,100,0,100,General Repairs & Maintenance,Timber & building supplies
Buckinghamshire Council,30.11.2020,11.11.2020,Communities,Farnham Park,TESCO STORES 5135,54,0,54,Awaiting Coding,Grocery stores
Buckinghamshire Council,30.11.2020,11.11.2020,"Planning, Growth & Sustainability","Planning, Growth & Sustainability",WH SMITH,14.98,0,14.98,"Books, Records, Films & Oth Publications",Newspapers / newsagents
Buckinghamshire Council,30.11.2020,11.11.2020,"Planning, Growth & Sustainability",Planning Growth & Sustainability,ALDI 110 775,4,0,4,Vending Machines Supplies,Grocery stores
Buckinghamshire Council,30.11.2020,11.11.2020,"Planning, Growth & Sustainability",Planning Growth & Sustainability,AMZNMKTPLACE,23.95,0,23.95,Cleaning Materials,Miscellaneous retail
Buckinghamshire Council,30.11.2020,11.11.2020,"Planning, Growth & Sustainability",Planning Growth & Sustainability,AMZNMKTPLACE,7.75,0,7.75,Stationery & Office Supplies,Miscellaneous retail
Buckinghamshire Council,30.11.2020,11.11.2020,"Planning, Growth & Sustainability",Planning Growth & Sustainability,AMZNMKTPLACE,1.69,0,1.69,Stationery & Office Supplies,Miscellaneous retail
Buckinghamshire Council,30.11.2020,11.11.2020,Adults and Health,"Adults, Health and Housing",AMZNMKTPLACE,174.87,0,174.87,Health & Safety Supplies & Services,Miscellaneous retail
Buckinghamshire Council,30.11.2020,11.11.2020,Adults and Health,"Adults, Health and Housing",AMZNMKTPLACE,51.47,0,51.47,Activities & General Recreation,Miscellaneous retail
Buckinghamshire Council,30.11.2020,11.11.2020,Children's Services,Children's Services,AMAZON.CO.UK,23.64,0,23.64,"Books, Records, Films & Oth Publications",Miscellaneous retail
Buckinghamshire Council,30.11.2020,11.11.2020,Children's Services,Children's Services,NEALES TAXIS LTD,120,0,120,Sec 17: Financial Assistance,Taxicabs & limousines
Buckinghamshire Council,30.11.2020,11.11.2020,Communities,Communities,AMAZON.CO.UK,20.97,0,20.97,"Books, Records, Films & Oth Publications",Miscellaneous retail
Buckinghamshire Council,30.11.2020,11.11.2020,Communities,Communities,AMZNMKTPLACE,8.92,0,8.92,"Books, Records, Films & Oth Publications",Miscellaneous retail
Buckinghamshire Council,30.11.2020,11.11.2020,Communities,Communities,WWW.MYPOSTSHOP.COM,2.5,0.5,3,Printing & Stationery,Stationery & office supplies
Buckinghamshire Council,30.11.2020,11.11.2020,Communities,Communities,WWW.MYPOSTSHOP.COM,75.99,0,75.99,Printing & Stationery,Stationery & office supplies
Buckinghamshire Council,30.11.2020,10.11.2020,Resources,Resources,BOYCOTT FARM SHOP,560,0,560,General Provisions (Food),Misc Food stores
Buckinghamshire Council,30.11.2020,10.11.2020,Deputy Chief Executive,Deputy Chief Executive,CURRYS ONLINE,183.32,36.67,219.99,Other Personal Needs,Electronics shops
Buckinghamshire Council,30.11.2020,10.11.2020,Deputy Chief Executive,Deputy Chief Executive,AO RETAIL LIMITED,211.65,42.33,253.98,Other Personal Needs,Household appliance stores
Buckinghamshire Council,30.11.2020,10.11.2020,Deputy Chief Executive,Deputy Chief Executive,AO RETAIL LIMITED,0.02,0,0.02,Other Personal Needs,Household appliance stores
Buckinghamshire Council,30.11.2020,10.11.2020,Children's Services,Children's Services,ARGOS LTD,202.95,0,202.95,Leaving Care-Grants for Care Leavers,Discount stores
Buckinghamshire Council,30.11.2020,10.11.2020,Communities,Communities,ALL PARTS,30.31,0,30.31,Repair & Maint of Vehicles & Plant,Motor vehicle supplies & parts
Buckinghamshire Council,30.11.2020,10.11.2020,Children's Services,Children's Services,TRAINLINE,54.45,0,54.45,Court Orders Sec 31: Supp. for Contact,Passenger railways
Buckinghamshire Council,30.11.2020,10.11.2020,Adults and Health,"Adults, Health and Housing",SAINSBURY'S S/MKT,14.3,0,14.3,General Provisions (Food),Grocery stores
Buckinghamshire Council,30.11.2020,10.11.2020,Communities,Communities,PARKING-CENTRAL,0.8,0,0.8,Miscellaneous (Other)  Expenses,Car parking & garages
Buckinghamshire Council,30.11.2020,10.11.2020,Communities,Communities,PARKING-CENTRAL,0.8,0,0.8,Miscellaneous (Other)  Expenses,Car parking & garages
Buckinghamshire Council,30.11.2020,10.11.2020,Communities,Communities,TALKTALK TELECOM,60,0,60,Mobile Telephones & Cellphone Charges,Computer network information services
Buckinghamshire Council,30.11.2020,10.11.2020,Communities,Communities,TALKTALK TELECOM,60,0,60,Mobile Telephones & Cellphone Charges,Computer network information services
Buckinghamshire Council,30.11.2020,10.11.2020,"Planning, Growth & Sustainability","Planning, Growth & Sustainability",AMZNMKTPLACE,17.48,0,17.48,Miscellaneous (Other)  Expenses,Miscellaneous retail
Buckinghamshire Council,30.11.2020,10.11.2020,Adults and Health,"Adults, Health and Housing",AMZNMKTPLACE,23.97,0,23.97,Health & Safety Supplies & Services,Miscellaneous retail
Buckinghamshire Council,30.11.2020,10.11.2020,Adults and Health,"Adults, Health and Housing",SAINSBURY'S S/MKT,46.2,0,46.2,Activities & General Recreation,Grocery stores
Buckinghamshire Council,30.11.2020,10.11.2020,Communities,Communities,TESCO STORES,1.15,0,1.15,Purchase.of Refreshments and Food,Grocery stores
Buckinghamshire Council,30.11.2020,10.11.2020,Deputy Chief Executive,Deputy Chief Executive,FACEBK *HZCYNX2MC2,17,0,17,Project Work and Project Management Costs,Advertising services
Buckinghamshire Council,30.11.2020,10.11.2020,Adults and Health,"Adults, Health and Housing",WWW.SMOOTH-EVENTS.COM,180,0,180,"Courses, Conference and Seminar Fees",Theatres and ticket agencies
Buckinghamshire Council,30.11.2020,10.11.2020,"Planning, Growth & Sustainability","Planning, Growth & Sustainability",PAYPAL,25,5,30,Special Events,Professional services
Buckinghamshire Council,30.11.2020,10.11.2020,Children's Services,Children's Services,BUCKINGHAMSHIRE CNCL,33,0,33,Court Orders Sec 31: Miscellaneous,Government services
Buckinghamshire Council,30.11.2020,10.11.2020,Children's Services,Children's Services,BUCKINGHAMSHIRE CNCL,44,0,44,Court Orders Sec 31: Miscellaneous,Government services
Buckinghamshire Council,30.11.2020,10.11.2020,Communities,Communities,SCREWFIX DIRECT,58.4,11.68,70.08,Administrative Equipment & Tools,Timber & building supplies
Buckinghamshire Council,30.11.2020,10.11.2020,Communities,Communities,SCREWFIX DIRECT,0.07,0,0.07,Administrative Equipment & Tools,Timber & building supplies
Buckinghamshire Council,30.11.2020,10.11.2020,Children's Services,Children's Services,TRAVELODGE GB0000,318.17,0,318.17,Sec 17: Financial Assistance,Travelodge
Buckinghamshire Council,30.11.2020,10.11.2020,"Planning, Growth & Sustainability",Planning Growth & Sustainability,SCREWFIX DIRECT,50.39,0,50.39,General Repairs & Maintenance,Timber & building supplies
Buckinghamshire Council,30.11.2020,10.11.2020,Children's Services,Children's Services,HM PASSPORT OFFICE,75.5,0,75.5,Leaving Care  - Financial Assistance,Government services
Buckinghamshire Council,30.11.2020,10.11.2020,Children's Services,Children's Services,AMZ*AMAZON.CO.UK,-25.94,0,-25.94,Leaving Care-Grants for Care Leavers,Miscellaneous retail
Buckinghamshire Council,30.11.2020,10.11.2020,"Planning, Growth & Sustainability",Planning Growth & Sustainability,AMZNMKTPLACE,7.98,0,7.98,General Repairs & Maintenance,Miscellaneous retail
Buckinghamshire Council,30.11.2020,10.11.2020,Communities,Farnham Park,B&M 582 - BRITWELL,44.11,0,44.11,Awaiting Coding,Misc. general merchandise
Buckinghamshire Council,30.11.2020,10.11.2020,Communities,Farnham Park,WEXHAM MOWER SVCS,324.49,0,324.49,Seeds & Plants,Lawn & garden supply/nursery
Buckinghamshire Council,30.11.2020,10.11.2020,"Planning, Growth & Sustainability",Planning Growth & Sustainability,B & Q 1305,64.16,12.84,77,Materials,Home supply warehouse stores
Buckinghamshire Council,30.11.2020,10.11.2020,"Planning, Growth & Sustainability",Planning Growth & Sustainability,JANSEN DISPLAY,55.15,0,55.15,Stationery & Office Supplies,Stationery & office supplies
Buckinghamshire Council,30.11.2020,10.11.2020,"Planning, Growth & Sustainability",Planning Growth & Sustainability,AMZNMKTPLACE,4.4,0,4.4,Stationery & Office Supplies,Miscellaneous retail
Buckinghamshire Council,30.11.2020,10.11.2020,Adults and Health,"Adults, Health and Housing",AMZNMKTPLACE,71.52,0,71.52,Health & Safety Supplies & Services,Miscellaneous retail
Buckinghamshire Council,30.11.2020,10.11.2020,Children's Services,Children's Services,PAYPAL,13.95,0,13.95,Activities & General Recreation,Chemical products
Buckinghamshire Council,30.11.2020,10.11.2020,Communities,Communities,AMZNMKTPLACE,2.99,0,2.99,Printing & Stationery,Miscellaneous retail
Buckinghamshire Council,30.11.2020,10.11.2020,Communities,Communities,AMAZON.CO.UK,36.87,0,36.87,"Books, Records, Films & Oth Publications",Miscellaneous retail
Buckinghamshire Council,30.11.2020,10.11.2020,Communities,Communities,AMAZON.CO.UK,42.59,0,42.59,"Books, Records, Films & Oth Publications",Direct sales companies
Buckinghamshire Council,30.11.2020,10.11.2020,Communities,Communities,AMAZON.CO.UK,11.32,0,11.32,"Books, Records, Films & Oth Publications",Miscellaneous retail
Buckinghamshire Council,30.11.2020,09.11.2020,Children's Services,Children's Services,,0.39,0,0,General Postage,Missing merchant category
Buckinghamshire Council,30.11.2020,09.11.2020,Deputy Chief Executive,Deputy Chief Executive,MailChimp,111.22,0,111.22,Awaiting Coding,
Buckinghamshire Council,30.11.2020,09.11.2020,Communities,Partnerships - Communities,MAILCHIMP,6.7,1.34,8.04,Miscellaneous (Other)  Expenses,
Buckinghamshire Council,30.11.2020,09.11.2020,Communities,Partnerships - Communities,MAILCHIMP,0.2,0,0.2,Miscellaneous (Other)  Expenses,
Buckinghamshire Council,30.11.2020,09.11.2020,"Planning, Growth & Sustainability","Planning, Growth & Sustainability",AMZNMKTPLACE,327.06,0,327.06,Stationery & Office Supplies,Miscellaneous retail
Buckinghamshire Council,30.11.2020,09.11.2020,Children's Services,Children's Services,AMZNMKTPLACE AMAZON.CO.UK,9.95,0,9.95,Printing & Stationery,Miscellaneous retail
Buckinghamshire Council,30.11.2020,09.11.2020,Children's Services,Children's Services,BUCKGINHAMSHIRE COUNCI,90,0,90,Health & Safety Supplies & Services,Government services
Buckinghamshire Council,30.11.2020,09.11.2020,Deputy Chief Executive,Deputy Chief Executive,FOOD BOXES,30,0,30,Other Personal Needs,Grocery stores
Buckinghamshire Council,30.11.2020,09.11.2020,Deputy Chief Executive,Deputy Chief Executive,CURRYS ONLINE,179.15,35.83,214.98,Other Personal Needs,Electronics shops
Buckinghamshire Council,30.11.2020,09.11.2020,Deputy Chief Executive,Deputy Chief Executive,CURRYS ONLINE,0.01,0,0.01,Other Personal Needs,Electronics shops
Buckinghamshire Council,30.11.2020,09.11.2020,Deputy Chief Executive,Deputy Chief Executive,AO RETAIL LIMITED,190.83,38.17,229,Other Personal Needs,Household appliance stores
Buckinghamshire Council,30.11.2020,09.11.2020,Communities,Communities,AMZNMKTPLACE,134.76,0,134.76,Other Equipment and Materials,Miscellaneous retail
Buckinghamshire Council,30.11.2020,09.11.2020,Communities,Communities,WWWTUDORENVIRONMENTALCOU,358.8,0,358.8,Other Equipment and Materials,Lawn & garden supply/nursery
Buckinghamshire Council,30.11.2020,09.11.2020,Communities,Communities,SCREWFIX DIRECT,104.95,0,104.95,Other Equipment and Materials,Timber & building supplies
Buckinghamshire Council,30.11.2020,09.11.2020,Adults and Health,"Adults, Health and Housing",ASDA SUPERSTORE,11.46,0,11.46,General Provisions (Food),Grocery stores
Buckinghamshire Council,30.11.2020,09.11.2020,Communities,Communities,AMZNMKTPLACE,31.64,6.34,37.98,Cleaning Materials,Miscellaneous retail
Buckinghamshire Council,30.11.2020,09.11.2020,Communities,WCM HWT Spec Exp - Communities Di,PHS GROUP,528.86,0,528.86,Cleaning - Contract Services,Misc business services
Buckinghamshire Council,30.11.2020,09.11.2020,Adults and Health,"Adults, Health and Housing",AMAZON PRIME,6.65,1.33,7.98,Stationery & Office Supplies,Continuous subscriptions
Buckinghamshire Council,30.11.2020,09.11.2020,Adults and Health,"Adults, Health and Housing",AMAZON PRIME,0.01,0,0.01,Stationery & Office Supplies,Continuous subscriptions
Buckinghamshire Council,30.11.2020,09.11.2020,Children's Services,Children's Services,ABC TAXIS,20,0,20,Court Orders Sec 31: Transport to School,Taxicabs & limousines
Buckinghamshire Council,30.11.2020,09.11.2020,Children's Services,Children's Services,ABC TAXIS,20,0,20,Court Orders Sec 31: Transport to School,Taxicabs & limousines
Buckinghamshire Council,30.11.2020,09.11.2020,Communities,Communities,ROADWARRIOR,47.09,0,47.09,Computer Support Services,"Programming, data processing & system design"
Buckinghamshire Council,30.11.2020,09.11.2020,Adults and Health,"Adults, Health and Housing",TESCO STORES 5135,77.8,0,77.8,General Provisions (Food),Grocery stores
Buckinghamshire Council,30.11.2020,09.11.2020,Communities,Partnerships - Communities,ADOBE CREATIVE CLOUD,41.62,0,41.62,Miscellaneous (Other)  Expenses,Computer software stores
Buckinghamshire Council,30.11.2020,09.11.2020,Adults and Health,"Adults, Health and Housing",WAITROSE 177,4.4,0,4.4,General Provisions (Food),Grocery stores
Buckinghamshire Council,30.11.2020,09.11.2020,Children's Services,Children's Services,TESCO STORES 2041,5,0,5,General Provisions (Food),Grocery stores
Buckinghamshire Council,30.11.2020,09.11.2020,Children's Services,Partnerships - Children's Service,SP * CHARFLEET BOOKS,102.96,0,102.96,"Books, Records, Films & Oth Publications",Computer software stores
Buckinghamshire Council,30.11.2020,09.11.2020,"Planning, Growth & Sustainability",Planning Growth & Sustainability,WWW.NEOPOST.CO.UK,"1,000.00",0,"1,000.00",General Postage,Stationery & office supplies
Buckinghamshire Council,30.11.2020,09.11.2020,Children's Services,Children's Services,HOME BARGAINS,14.99,0,14.99,Other Equipment and Materials,Hardware stores
Buckinghamshire Council,30.11.2020,09.11.2020,Children's Services,Children's Services,ASDA SUPERSTORE,8.28,0,8.28,General Provisions (Food),Grocery stores
Buckinghamshire Council,30.11.2020,09.11.2020,Children's Services,Children's Services,HOME BARGAINS,31.85,0,31.85,Other Equipment and Materials,Hardware stores
Buckinghamshire Council,30.11.2020,09.11.2020,Communities,Farnham Park,SCREWFIX SLOUGH,44.9,0,44.9,General Repairs & Maintenance,Timber & building supplies
Buckinghamshire Council,30.11.2020,09.11.2020,Deputy Chief Executive,Deputy Chief Executive,INSTITUTELI,500,0,500,Awaiting Coding,Membership organisations
Buckinghamshire Council,30.11.2020,09.11.2020,Deputy Chief Executive,Deputy Chief Executive,INSTITUTELI,500,0,500,Awaiting Coding,Membership organisations
Buckinghamshire Council,30.11.2020,09.11.2020,Deputy Chief Executive,Deputy Chief Executive,INSTITUTELI,80.3,0,80.3,Awaiting Coding,Membership organisations
Buckinghamshire Council,30.11.2020,09.11.2020,Adults and Health,"Adults, Health and Housing",TESCO STORES 5135,68.77,0,68.77,General Provisions (Food),Grocery stores
Buckinghamshire Council,30.11.2020,09.11.2020,Adults and Health,"Adults, Health and Housing",HOLIDAY INN AYLESB,379.15,75.83,454.98,Staff Travelling Expenses,"Hotels, motels & resorts"
Buckinghamshire Council,30.11.2020,09.11.2020,Adults and Health,"Adults, Health and Housing",HOLIDAY INN AYLESB,0.02,0,0.02,Staff Travelling Expenses,"Hotels, motels & resorts"
Buckinghamshire Council,30.11.2020,09.11.2020,Adults and Health,"Adults, Health and Housing",SAINSBURYS S/MKTS,9.6,0,9.6,General Provisions (Food),Grocery stores
Buckinghamshire Council,30.11.2020,09.11.2020,Children's Services,Children's Services,ARGOS LTD,115.94,0,115.94,Leaving Care-Grants for Care Leavers,Discount stores
Buckinghamshire Council,30.11.2020,09.11.2020,Adults and Health,"Adults, Health and Housing",AMAZON.CO.UK,22.7,4.54,27.24,Stationery & Office Supplies,Miscellaneous retail
Buckinghamshire Council,30.11.2020,09.11.2020,Adults and Health,"Adults, Health and Housing",AMAZON.CO.UK,0.03,0,0.03,Stationery & Office Supplies,Miscellaneous retail
Buckinghamshire Council,30.11.2020,08.11.2020,Adults and Health,"Adults, Health and Housing",TESCO STORES 2038,12.05,0,12.05,Cleaning & Domestic Equipment,Grocery stores
Buckinghamshire Council,30.11.2020,08.11.2020,Children's Services,Children's Services,AMAZON.CO.UK,6.99,0,6.99,Printing & Stationery,Direct sales companies
Buckinghamshire Council,30.11.2020,08.11.2020,Children's Services,Children's Services,AMAZON.CO.UK,10.99,0,10.99,Printing & Stationery,Direct sales companies
Buckinghamshire Council,30.11.2020,08.11.2020,Children's Services,Children's Services,AMAZON.CO.UK,6.99,0,6.99,Printing & Stationery,Direct sales companies
Buckinghamshire Council,30.11.2020,08.11.2020,Adults and Health,"Adults, Health and Housing",AMZNMKTPLACE AMAZON.CO.UK,113.59,0,113.59,Health & Safety Supplies & Services,Miscellaneous retail
Buckinghamshire Council,30.11.2020,07.11.2020,Communities,Communities,B & Q 1305,24.49,4.9,29.39,Other Equipment and Materials,Home supply warehouse stores
Buckinghamshire Council,30.11.2020,07.11.2020,Deputy Chief Executive,Deputy Chief Executive,FACEBK *27UWAWWMC2,17,0,17,Project Work and Project Management Costs,Advertising services
Buckinghamshire Council,30.11.2020,07.11.2020,Resources,Resources,ABRATAX - MTD,10,2,12,Computer Consumables,Computer software stores
Buckinghamshire Council,30.11.2020,07.11.2020,Communities,Communities,AMZNMKTPLACE,37.7,7.54,45.24,Repair and Maintenance of Equipment,Miscellaneous retail
Buckinghamshire Council,30.11.2020,07.11.2020,Communities,Communities,AMZNMKTPLACE,0.01,0,0.01,Repair and Maintenance of Equipment,Miscellaneous retail
Buckinghamshire Council,30.11.2020,07.11.2020,Deputy Chief Executive,Deputy Chief Executive,CANVA* 02867-6258958,10.19,0,10.19,Awaiting Coding,Photographic studios
Buckinghamshire Council,30.11.2020,07.11.2020,Communities,Communities,AMAZON PRIME,7.99,0,7.99,Stationery & Office Supplies,Continuous subscriptions
Buckinghamshire Council,30.11.2020,07.11.2020,Communities,Communities,AMZNMKTPLACE,30.88,0,30.88,Printing & Stationery,Miscellaneous retail
Buckinghamshire Council,30.11.2020,07.11.2020,Communities,Communities,PREMIER FARNELL,103.63,0,103.63,General Repairs & Maintenance,Electrical parts & equipment
Buckinghamshire Council,30.11.2020,06.11.2020,Children's Services,Children's Services,WF* WAYFAIR 3397232984,58.99,0,58.99,Furniture,Furniture & home furnishing
Buckinghamshire Council,30.11.2020,06.11.2020,Resources,Resources,ROYAL MAIL ONLINE SHOP,14.8,0,14.8,Stationery & Office Supplies,Postal services
Buckinghamshire Council,30.11.2020,06.11.2020,Deputy Chief Executive,Deputy Chief Executive,AO RETAIL LIMITED,200,40,240,Other Personal Needs,Household appliance stores
Buckinghamshire Council,30.11.2020,06.11.2020,Deputy Chief Executive,Deputy Chief Executive,FOOD BOXES,30,0,30,Other Personal Needs,Grocery stores
Buckinghamshire Council,30.11.2020,06.11.2020,Deputy Chief Executive,Deputy Chief Executive,FOOD BOXES,35,0,35,Other Personal Needs,Grocery stores
Buckinghamshire Council,30.11.2020,06.11.2020,Children's Services,Children's Services,ARGOS LTD,100,0,100,Leaving Care-Grants for Care Leavers,Discount stores
Buckinghamshire Council,30.11.2020,06.11.2020,Children's Services,Children's Services,AO RETAIL LIMITED,294,0,294,Leaving Care-Grants for Care Leavers,Household appliance stores
Buckinghamshire Council,30.11.2020,06.11.2020,Children's Services,Children's Services,ARGOS LTD,34.99,0,34.99,Leaving Care-Grants for Care Leavers,Discount stores
Buckinghamshire Council,30.11.2020,06.11.2020,Children's Services,Children's Services,ARGOS LTD,572.93,0,572.93,Leaving Care-Grants for Care Leavers,Discount stores
Buckinghamshire Council,30.11.2020,06.11.2020,Children's Services,Children's Services,ARGOS LTD,234.4,0,234.4,Leaving Care-Grants for Care Leavers,Discount stores
Buckinghamshire Council,30.11.2020,06.11.2020,Children's Services,Children's Services,ARGOS LTD,149.99,0,149.99,Leaving Care-Grants for Care Leavers,Discount stores
Buckinghamshire Council,30.11.2020,06.11.2020,Communities,Communities,AMZNMKTPLACE,24.99,0,24.99,Other Equipment and Materials,Miscellaneous retail
Buckinghamshire Council,30.11.2020,06.11.2020,Communities,Communities,AMAZON.CO.UK,31.24,0,31.24,Other Equipment and Materials,Direct sales companies
Buckinghamshire Council,30.11.2020,06.11.2020,Children's Services,Children's Services,FOOTASYLUM PLC,99.99,0,99.99,Court Orders Sec 31: Placed with Parent,Men & womens clothing shops
Buckinghamshire Council,30.11.2020,06.11.2020,Resources,Resources,VUE ITCERTIFICATIONVUE,135.6,0,135.6,"Courses, Conference and Seminar Fees",Schools
Buckinghamshire Council,30.11.2020,06.11.2020,Resources,Resources,T KING ASSOCIATES,264.9,0,264.9,Protective Clothing & Uniforms,Uniforms & commercial clothing
Buckinghamshire Council,30.11.2020,06.11.2020,Adults and Health,"Adults, Health and Housing",ARGOS LTD,129.99,0,129.99,Cleaning & Domestic Equipment,Discount stores
Buckinghamshire Council,30.11.2020,06.11.2020,Adults and Health,"Adults, Health and Housing",TESCO STORES 2020,89.63,0,89.63,General Provisions (Food),Grocery stores
Buckinghamshire Council,30.11.2020,06.11.2020,"Planning, Growth & Sustainability","Planning, Growth & Sustainability",LIGHTING & MAINS POWER,262.42,0,262.42,Special Projects,Household appliance stores
Buckinghamshire Council,30.11.2020,06.11.2020,Communities,Communities,AMZNMKTPLACE,25.76,0,25.76,Cleaning Materials,Miscellaneous retail
Buckinghamshire Council,30.11.2020,06.11.2020,Children's Services,Children's Services,B & Q 1354,171.57,34.32,205.89,Other Equipment and Materials,Home supply warehouse stores
Buckinghamshire Council,30.11.2020,06.11.2020,Adults and Health,"Adults, Health and Housing",AMZNMKTPLACE,25.48,0,25.48,Stationery & Office Supplies,Miscellaneous retail
Buckinghamshire Council,30.11.2020,06.11.2020,Adults and Health,"Adults, Health and Housing",AMZNMKTPLACE,19.98,0,19.98,Stationery & Office Supplies,Miscellaneous retail
Buckinghamshire Council,30.11.2020,06.11.2020,Children's Services,Children's Services,YELLOW CARS HW LTD,240,48,288,Sec 17: Transport (excl to Fam.Centres),Taxicabs & limousines
Buckinghamshire Council,30.11.2020,06.11.2020,Communities,Communities,WWW.SIGN-HOLDERS.CO.UK,150,30,180,Administrative Equipment & Tools,Miscellaneous retail
Buckinghamshire Council,30.11.2020,06.11.2020,Children's Services,Partnerships - Children's Service,M AND K CLEANING SERVICES,76.25,0,76.25,Window Cleaning,"Cleaning, maintenance & janitorial services"
Buckinghamshire Council,30.11.2020,06.11.2020,Children's Services,Children's Services,TESCO STORES 5927,3.1,0,3.1,General Provisions (Food),Grocery stores
Buckinghamshire Council,30.11.2020,06.11.2020,Children's Services,Children's Services,ASDA SUPERSTORE,10,0,10,Other Equipment and Materials,Grocery stores
Buckinghamshire Council,30.11.2020,06.11.2020,"Planning, Growth & Sustainability","Planning, Growth & Sustainability",WH SMITH,21.45,0,21.45,"Books, Records, Films & Oth Publications",Newspapers / newsagents
Buckinghamshire Council,30.11.2020,06.11.2020,Children's Services,Children's Services,PREMIER INN44537360,545,0,545,Sec 17: Financial Assistance,Premier Inn
Buckinghamshire Council,30.11.2020,06.11.2020,Resources,Resources,FACEBK *Z9PXVV6742,99.03,0,99.03,Advertising,Advertising services
Buckinghamshire Council,30.11.2020,06.11.2020,Children's Services,Children's Services,LONDON BOROUGH OF,24,0,24,Sec 17: Miscellaneous,Government services
Buckinghamshire Council,30.11.2020,06.11.2020,Children's Services,Children's Services,FREEDOM PROGRAMME LIMITED,24,0,24,Court Orders Sec 31: Miscellaneous,Schools
Buckinghamshire Council,30.11.2020,06.11.2020,Children's Services,Children's Services,NEALES TAXIS LTD,120,0,120,Sec 17: Financial Assistance,Taxicabs & limousines
Buckinghamshire Council,30.11.2020,06.11.2020,Children's Services,Children's Services,FREEDOM PROGRAMME LIMITED,12,0,12,Court Orders Sec 31: Miscellaneous,Schools
Buckinghamshire Council,30.11.2020,06.11.2020,"Planning, Growth & Sustainability",Planning Growth & Sustainability,THE KNOWLEDGE ACADEMY,823.5,164.7,988.2,Course Fees & Post Entry Training,Vocational & trade schools
Buckinghamshire Council,30.11.2020,06.11.2020,"Planning, Growth & Sustainability",Planning Growth & Sustainability,THE KNOWLEDGE ACADEMY,0.02,0,0.02,Course Fees & Post Entry Training,Vocational & trade schools
Buckinghamshire Council,30.11.2020,06.11.2020,Adults and Health,"Adults, Health and Housing",AMZNMKTPLACE,179.5,35.9,215.4,Other General Office Expenses,Miscellaneous retail
Buckinghamshire Council,30.11.2020,06.11.2020,Adults and Health,"Adults, Health and Housing",AMZNMKTPLACE,324.5,64.9,389.4,Other General Office Expenses,Miscellaneous retail
Buckinghamshire Council,30.11.2020,05.11.2020,Children's Services,Children's Services,ARGOS LTD,28.94,0,28.94,IT Equipment Purchase,Discount stores
Buckinghamshire Council,30.11.2020,05.11.2020,Adults and Health,"Adults, Health and Housing",AMZNMKTPLACE,95.77,0,95.77,Activities & General Recreation,Miscellaneous retail
Buckinghamshire Council,30.11.2020,05.11.2020,Children's Services,Children's Services,W M MORRISONS.COM,8,0,8,General Provisions (Food),Grocery stores
Buckinghamshire Council,30.11.2020,05.11.2020,Deputy Chief Executive,Deputy Chief Executive,CURRYS ONLINE,411.65,82.33,493.98,Other Personal Needs,Electronics shops
Buckinghamshire Council,30.11.2020,05.11.2020,Deputy Chief Executive,Deputy Chief Executive,CURRYS ONLINE,0.01,0,0.01,Other Personal Needs,Electronics shops
Buckinghamshire Council,30.11.2020,05.11.2020,Communities,Communities,FAROL,124.01,0,124.01,Other Equipment and Materials,Misc business services
Buckinghamshire Council,30.11.2020,05.11.2020,Children's Services,Children's Services,SLOUGH BOROUGH COUNCIL,11,0,11,Court Orders Sec 31: Miscellaneous,Government services
Buckinghamshire Council,30.11.2020,05.11.2020,Adults and Health,"Adults, Health and Housing",SAINSBURY'S S/MKT,4,0,4,General Provisions (Food),Grocery stores
Buckinghamshire Council,30.11.2020,05.11.2020,Children's Services,Children's Services,CCL COMPUTERS LTD,216.46,0,216.46,Computer Consumables,"Computers, peripherals & software"
Buckinghamshire Council,30.11.2020,05.11.2020,Children's Services,Children's Services,AMZNMKTPLACE,20.4,4.08,24.48,Computer Consumables,Miscellaneous retail
Buckinghamshire Council,30.11.2020,05.11.2020,Adults and Health,"Adults, Health and Housing",ASDA SUPERSTORE,12,0,12,General Provisions (Food),Grocery stores
Buckinghamshire Council,30.11.2020,05.11.2020,Communities,Communities,HOMEBASE,25.65,0,25.65,Maintenance of Grounds,Home supply warehouse stores
Buckinghamshire Council,30.11.2020,05.11.2020,Deputy Chief Executive,Deputy Chief Executive,FACEBK *F7P9WWEMC2,17,0,17,Project Work and Project Management Costs,Advertising services
Buckinghamshire Council,30.11.2020,05.11.2020,"Planning, Growth & Sustainability",Planning Growth & Sustainability,SCREWFIX DIR LTD,55.24,0,55.24,General Repairs & Maintenance,Timber & building supplies
Buckinghamshire Council,30.11.2020,05.11.2020,Communities,Communities,CHILLY'S BOTTLES,20,0,20,Waste Prevention costs,Miscellaneous retail
Buckinghamshire Council,30.11.2020,05.11.2020,"Planning, Growth & Sustainability","Planning, Growth & Sustainability",WWW.ARB.ORG.UK,119,0,119,LKD Other Professional & Consultancy Fees,"Architectural, engineering & surveying"
Buckinghamshire Council,30.11.2020,05.11.2020,Children's Services,Children's Services,CURRYS ONLINE,599.99,120,719.99,Office expenses internal charges�����,Electronics shops
Buckinghamshire Council,30.11.2020,05.11.2020,Communities,Communities,REPLACEMENT KEYS LTD,22.5,4.5,27,"Workshop - Materials,Tools & Equipment",Misc. general merchandise
Buckinghamshire Council,30.11.2020,05.11.2020,"Planning, Growth & Sustainability","Planning, Growth & Sustainability",WWW.FIREPROTECTIONSHOP,50.58,0,50.58,General Repairs & Maintenance,Miscellaneous retail
Buckinghamshire Council,30.11.2020,05.11.2020,Children's Services,Children's Services,UNIQUE MAGAZINES LTD,40.49,0,40.49,Stationery & Office Supplies,Continuous subscriptions
Buckinghamshire Council,30.11.2020,05.11.2020,Children's Services,Children's Services,BEANO,87,0,87,Printing & Stationery,Publishing & printing services
Buckinghamshire Council,30.11.2020,05.11.2020,Children's Services,Children's Services,TESCO STORE 3095,29,0,29,General Provisions (Food),Grocery stores
Buckinghamshire Council,30.11.2020,05.11.2020,Adults and Health,"Adults, Health and Housing",AMZNMKTPLACE AMAZON.CO.UK,28.99,0,28.99,Catering & Domestic Equipment,Miscellaneous retail
Buckinghamshire Council,30.11.2020,05.11.2020,Adults and Health,"Adults, Health and Housing",AMZNMKTPLACE,10.99,0,10.99,Catering & Domestic Equipment,Miscellaneous retail
Buckinghamshire Council,30.11.2020,05.11.2020,"Planning, Growth & Sustainability","Planning, Growth & Sustainability",CHARTERED INSTITUTE OF EN,226.5,0,226.5,Awaiting Coding,Charitable organisations
Buckinghamshire Council,30.11.2020,05.11.2020,"Planning, Growth & Sustainability","Planning, Growth & Sustainability",CHARTERED INSTITUTE OF EN,45,0,45,Awaiting Coding,Charitable organisations
Buckinghamshire Council,30.11.2020,05.11.2020,"Planning, Growth & Sustainability","Planning, Growth & Sustainability",CHARTERED INSTITUTE OF EN,45,0,45,Awaiting Coding,Charitable organisations
Buckinghamshire Council,30.11.2020,05.11.2020,Adults and Health,"Adults, Health and Housing",AMZNMKTPLACE,3.49,0,3.49,Stationery & Office Supplies,Miscellaneous retail
Buckinghamshire Council,30.11.2020,05.11.2020,Adults and Health,"Adults, Health and Housing",AMZNMKTPLACE,3.48,0,3.48,Stationery & Office Supplies,Miscellaneous retail
Buckinghamshire Council,30.11.2020,05.11.2020,Adults and Health,"Adults, Health and Housing",AMZNMKTPLACE,6.78,0,6.78,Stationery & Office Supplies,Miscellaneous retail
Buckinghamshire Council,30.11.2020,05.11.2020,Adults and Health,"Adults, Health and Housing",AMZNMKTPLACE,24.98,0,24.98,Stationery & Office Supplies,Miscellaneous retail
Buckinghamshire Council,30.11.2020,05.11.2020,Adults and Health,"Adults, Health and Housing",AMZNMKTPLACE,18.07,0,18.07,Stationery & Office Supplies,Miscellaneous retail
Buckinghamshire Council,30.11.2020,05.11.2020,Communities,Communities,DISPLAY SIGNS LIMITED,128,25.6,153.6,Printing & Stationery,Publishing & printing services
Buckinghamshire Council,30.11.2020,05.11.2020,Adults and Health,"Adults, Health and Housing",HAMPSTEAD SUITES,"2,070.00",0,"2,070.00","Courses, Conference and Seminar Fees","Hotels, motels & resorts"
Buckinghamshire Council,30.11.2020,05.11.2020,"Planning, Growth & Sustainability",Planning Growth & Sustainability,ALLSTAR BUSINESS SOLUTIO,373.05,74.61,447.66,Diesel Oil - Gas Oil,Fuel dealers
Buckinghamshire Council,30.11.2020,05.11.2020,"Planning, Growth & Sustainability",Planning Growth & Sustainability,ALLSTAR BUSINESS SOLUTIO,40.13,0,40.13,Diesel Oil - Gas Oil,Fuel dealers
Buckinghamshire Council,30.11.2020,05.11.2020,"Planning, Growth & Sustainability","Planning, Growth & Sustainability",AMAZON.CO.UK,25.54,0,25.54,Equipment,Miscellaneous retail
Buckinghamshire Council,30.11.2020,05.11.2020,"Planning, Growth & Sustainability",Planning Growth & Sustainability,DIRECT 365ONLINE LTD,325.44,0,325.44,Repair and Maintenance of Equipment,Misc business services
Buckinghamshire Council,30.11.2020,05.11.2020,Resources,Resources,KAPWING PRO PLAN,15.93,0,15.93,Computer Consumables,Computer software stores
Buckinghamshire Council,30.11.2020,05.11.2020,Communities,Communities,INSTITUTELI,198,0,198,"Courses, Conference and Seminar Fees",Membership organisations
Buckinghamshire Council,30.11.2020,05.11.2020,Communities,Communities,AMAZON.CO.UK,14.15,2.83,16.98,"Workshop - Materials,Tools & Equipment",Direct sales companies
Buckinghamshire Council,30.11.2020,05.11.2020,Communities,Communities,AMAZON.CO.UK,0.01,0,0.01,"Workshop - Materials,Tools & Equipment",Direct sales companies
Buckinghamshire Council,30.11.2020,05.11.2020,Deputy Chief Executive,Deputy Chief Executive,BUCKINGHAMSHIRE CNCL,60,0,60,Purchasing Card  - Disputed Transactions,Government services
Buckinghamshire Council,30.11.2020,05.11.2020,Children's Services,Children's Services,O2 PREPAY TOP-UP,15,0,15,Activities & General Recreation,Phone services
Buckinghamshire Council,30.11.2020,05.11.2020,Adults and Health,"Adults, Health and Housing",AMZNMKTPLACE,119.9,0,119.9,Protective Clothing & Uniforms,Miscellaneous retail
Buckinghamshire Council,30.11.2020,05.11.2020,Children's Services,Children's Services,AMZNMKTPLACE,35.62,0,35.62,Printing & Stationery,Miscellaneous retail
Buckinghamshire Council,30.11.2020,05.11.2020,Children's Services,Children's Services,TRAINLINE,322.69,0,322.69,Court Orders Sec 31: Supp. for Contact,Passenger railways
Buckinghamshire Council,30.11.2020,05.11.2020,Adults and Health,"Adults, Health and Housing",GILBERTS OF CHESHAM,36,0,36,Staff Travelling Expenses,Taxicabs & limousines
Buckinghamshire Council,30.11.2020,05.11.2020,"Planning, Growth & Sustainability","Planning, Growth & Sustainability",WWW.CPAG.ORG.UK,183,0,183,Training - Central 100%,Charitable organisations
Buckinghamshire Council,30.11.2020,05.11.2020,Deputy Chief Executive,Deputy Chief Executive,FOOD BOXES,35,0,35,Other Personal Needs,Grocery stores
Buckinghamshire Council,30.11.2020,05.11.2020,Children's Services,Children's Services,IKEA LTD SHOP ONLINE,149,0,149,Leaving Care-Grants for Care Leavers,Furniture & home furnishing
Buckinghamshire Council,30.11.2020,04.11.2020,Children's Services,Children's Services,BOOHOO.COM,57.19,0,57.19,Other Personal Needs,Men & womens clothing shops
Buckinghamshire Council,30.11.2020,04.11.2020,Communities,Communities,HALFORDS 0529,52.65,0,52.65,Other Equipment and Materials,"Bicycle shops, sales & service"
Buckinghamshire Council,30.11.2020,04.11.2020,Communities,Communities,CH MORGAN,145.91,0,145.91,Other Equipment and Materials,"Architectural, engineering & surveying"
Buckinghamshire Council,30.11.2020,04.11.2020,"Planning, Growth & Sustainability","Planning, Growth & Sustainability",WWW.CIOB.ORG.UK,294,0,294,Professional Subscriptions re Employees,Membership organisations
Buckinghamshire Council,30.11.2020,04.11.2020,Adults and Health,"Adults, Health and Housing",B & Q 1124,11.65,2.33,13.98,Health & Safety Supplies & Services,Home supply warehouse stores
Buckinghamshire Council,30.11.2020,04.11.2020,Adults and Health,"Adults, Health and Housing",B & Q 1124,0.02,0,0.02,Health & Safety Supplies & Services,Home supply warehouse stores
Buckinghamshire Council,30.11.2020,04.11.2020,Adults and Health,"Adults, Health and Housing",AMZNMKTPLACE,29.99,0,29.99,Specialist Equipment,Miscellaneous retail
Buckinghamshire Council,30.11.2020,04.11.2020,Children's Services,Children's Services,AO RETAIL LIMITED,865,0,865,Furniture,Household appliance stores
Buckinghamshire Council,30.11.2020,04.11.2020,Children's Services,Children's Services,ABC TAXIS,124,0,124,Court Orders Sec 31: Transport to School,Taxicabs & limousines
Buckinghamshire Council,30.11.2020,04.11.2020,Children's Services,Children's Services,DVLA DRIVER ONLINE,34,0,34,Leaving Care  - Financial Assistance,Government services
Buckinghamshire Council,30.11.2020,04.11.2020,Deputy Chief Executive,Deputy Chief Executive,FEEDLY.COM,19.14,0,19.14,Computer Support Services,"Programming, data processing & system design"
Buckinghamshire Council,30.11.2020,04.11.2020,Communities,Communities,B & Q 1305,12.55,2.52,15.07,Administrative Equipment & Tools,Home supply warehouse stores
Buckinghamshire Council,30.11.2020,04.11.2020,Adults and Health,"Adults, Health and Housing",AMZNMKTPLACE,4.79,0,4.79,Stationery & Office Supplies,Miscellaneous retail
Buckinghamshire Council,30.11.2020,04.11.2020,Adults and Health,"Adults, Health and Housing",AMZNMKTPLACE,3.89,0,3.89,Stationery & Office Supplies,Miscellaneous retail
Buckinghamshire Council,30.11.2020,04.11.2020,Children's Services,Children's Services,YELLOW CARS HW LTD,400,80,480,Sec 17: Transport (excl to Fam.Centres),Taxicabs & limousines
Buckinghamshire Council,30.11.2020,04.11.2020,Deputy Chief Executive,Deputy Chief Executive,ZOOM.GBP,11.99,0,11.99,Stationery & Office Supplies,Continuous subscriptions
Buckinghamshire Council,30.11.2020,04.11.2020,Deputy Chief Executive,Deputy Chief Executive,GOOGLE  ADS9487654749,200,0,200,Advertising,Advertising services
Buckinghamshire Council,30.11.2020,04.11.2020,Children's Services,Children's Services,WWW.FURNITUREVILLAGE.CO.,519,0,519,Leaving Care-Grants for Care Leavers,Furniture & home furnishing
Buckinghamshire Council,30.11.2020,04.11.2020,"Planning, Growth & Sustainability",Planning Growth & Sustainability,WWW.NEOPOST.CO.UK,"1,000.00",0,"1,000.00",General Postage,Stationery & office supplies
Buckinghamshire Council,30.11.2020,04.11.2020,"Planning, Growth & Sustainability","Planning, Growth & Sustainability",LOCK & KEY CENTRE,22.08,0,22.08,Furniture,Shoe repairs
Buckinghamshire Council,30.11.2020,04.11.2020,Communities,Communities,WWW.LETSRECYCLE.COM,99,19.8,118.8,"Courses, Conference and Seminar Fees",Advertising services
Buckinghamshire Council,30.11.2020,04.11.2020,Communities,Communities,WWW.LETSRECYCLE.COM,4.95,0,4.95,"Courses, Conference and Seminar Fees",Advertising services
Buckinghamshire Council,30.11.2020,04.11.2020,Communities,Communities,AMZNMKTPLACE,31.96,0,31.96,Equipment,Miscellaneous retail
Buckinghamshire Council,30.11.2020,04.11.2020,Children's Services,Children's Services,NEALES TAXIS LTD,16,0,16,Sec 17: Transport (excl to Fam.Centres),Taxicabs & limousines
Buckinghamshire Council,30.11.2020,04.11.2020,Resources,Resources,CARDIFF COUNCIL EPAY,12,0,12,Miscellaneous (Other)  Expenses,Government services
Buckinghamshire Council,30.11.2020,04.11.2020,Children's Services,Children's Services,WWW.LIBERTYGAMES.CO.UK,138.4,0,138.4,Activities & General Recreation,"Hobby, toy & game shops"
Buckinghamshire Council,30.11.2020,04.11.2020,Communities,Communities,CHRISTIAN COPYRIGHT LI,80,0,80,Subscriptions to National Bodies,Misc business services
Buckinghamshire Council,30.11.2020,04.11.2020,Communities,Partnerships - Communities,BT.COM BUSINESS BP,76.2,15.24,91.44,Telephones,Phone services
Buckinghamshire Council,30.11.2020,04.11.2020,Children's Services,Children's Services,BOOHOO.COM,-5.6,0,-5.6,Other Personal Needs,Men & womens clothing shops
Buckinghamshire Council,30.11.2020,04.11.2020,Communities,Communities,AMAZON.CO.UK,36.99,0,36.99,Other Equipment and Materials,Miscellaneous retail
Buckinghamshire Council,30.11.2020,04.11.2020,Adults and Health,"Adults, Health and Housing",SCREWFIX DIR LTD,49.98,0,49.98,General Repairs & Maintenance,Timber & building supplies
Buckinghamshire Council,30.11.2020,04.11.2020,"Planning, Growth & Sustainability",Planning Growth & Sustainability,SCREWFIX AYLESBURY,45.21,0,45.21,General Repairs & Maintenance,Timber & building supplies
Buckinghamshire Council,30.11.2020,04.11.2020,Communities,Farnham Park,SCREWFIX SLOUGH,44.9,0,44.9,General Repairs & Maintenance,Timber & building supplies
Buckinghamshire Council,30.11.2020,03.11.2020,"Planning, Growth & Sustainability","Planning, Growth & Sustainability",SP * BATH PUBLISHING L,90,0,90,Course Fees & Post Entry Training,Computer software stores
Buckinghamshire Council,30.11.2020,03.11.2020,Communities,Communities,IVINGHOE TURF,55.44,0,55.44,Consumable Supplies,Landscape & horticultural services
Buckinghamshire Council,30.11.2020,03.11.2020,Children's Services,Children's Services,ENGLISHTYPE,32.45,0,32.45,Computer Consumables,Computer software stores
Buckinghamshire Council,30.11.2020,03.11.2020,Children's Services,Children's Services,ENGLISHTYPE,29.95,0,29.95,Computer Consumables,Computer software stores
Buckinghamshire Council,30.11.2020,03.11.2020,Children's Services,Children's Services,ENGLISHTYPE,29.95,0,29.95,Computer Consumables,Computer software stores
Buckinghamshire Council,30.11.2020,03.11.2020,"Planning, Growth & Sustainability","Planning, Growth & Sustainability",AMZNMKTPLACE,290.8,0,290.8,Other General Office Expenses,Miscellaneous retail
Buckinghamshire Council,30.11.2020,03.11.2020,Resources,Resources,VUE ITCERTIFICATIONVUE,135.6,0,135.6,"Courses, Conference and Seminar Fees",Schools
Buckinghamshire Council,30.11.2020,03.11.2020,Children's Services,Children's Services,FREEDOM PROGRAMME LIMITED,12,0,12,Sec 17: Financial Assistance,Schools
Buckinghamshire Council,30.11.2020,03.11.2020,"Planning, Growth & Sustainability","Planning, Growth & Sustainability",WILKO RETAIL LIMITED,3,0,3,Other General Office Expenses,Misc. general merchandise
Buckinghamshire Council,30.11.2020,03.11.2020,Communities,Communities,AMZNMKTPLACE,45,0,45,Protective Clothing & Uniforms,Miscellaneous retail
Buckinghamshire Council,30.11.2020,03.11.2020,Adults and Health,"Adults, Health and Housing",POST OFFICE COUNTER,15.96,0,15.96,General Postage,Postal services
Buckinghamshire Council,30.11.2020,03.11.2020,Adults and Health,"Adults, Health and Housing",BOOKER LIMITED SLOUGH,106.36,0,106.36,General Provisions (Food),Caterers
Buckinghamshire Council,30.11.2020,03.11.2020,Communities,Communities,TESCO STORES,1.15,0,1.15,Purchase.of Refreshments and Food,Grocery stores
Buckinghamshire Council,30.11.2020,03.11.2020,"Planning, Growth & Sustainability",Planning Growth & Sustainability,WWW.NEOPOST.CO.UK,"1,000.00",0,"1,000.00",General Postage,Stationery & office supplies
Buckinghamshire Council,30.11.2020,03.11.2020,Adults and Health,"Adults, Health and Housing",THE RANGE,35.91,0,35.91,Printing & stationery internal receipts,Department stores
Buckinghamshire Council,30.11.2020,03.11.2020,Children's Services,Children's Services,AMAZON PRIME,7.99,0,7.99,Stationery & Office Supplies,Continuous subscriptions
Buckinghamshire Council,30.11.2020,03.11.2020,Children's Services,Children's Services,AMZNMKTPLACE,48.99,0,48.99,Cleaning & Domestic Equipment,Miscellaneous retail
Buckinghamshire Council,30.11.2020,03.11.2020,Children's Services,Children's Services,TRAINLINE,7.85,0,7.85,Court Orders Sec 31: Supp. for Contact,Passenger railways
Buckinghamshire Council,30.11.2020,03.11.2020,Communities,Communities,POST OFFICE COUNTER,12.14,0,12.14,General Postage,Postal services
Buckinghamshire Council,30.11.2020,03.11.2020,Children's Services,Children's Services,AMAZON.CO.UK,31.17,0,31.17,Equipment (including storage),Direct sales companies
Buckinghamshire Council,30.11.2020,03.11.2020,Resources,Resources,WWW.SKEDDLY.COM,100.04,0,100.04,Computer Software Licences & Purchase,"Programming, data processing & system design"
Buckinghamshire Council,30.11.2020,03.11.2020,Resources,Resources,AWS EMEA,164.08,0,164.08,Computer Software Licences & Purchase,Misc business services
Buckinghamshire Council,30.11.2020,03.11.2020,Children's Services,Children's Services,TESCO STORES 2041,7.8,0,7.8,Cleaning Materials,Grocery stores
Buckinghamshire Council,30.11.2020,03.11.2020,Children's Services,Children's Services,TRAVELODGE GB0000,774.73,0,774.73,Sec 17: Financial Assistance,Travelodge
Buckinghamshire Council,30.11.2020,03.11.2020,"Planning, Growth & Sustainability",Planning Growth & Sustainability,DIGITAL ID,129.06,0,129.06,Computer Consumables,"Computers, peripherals & software"
Buckinghamshire Council,30.11.2020,03.11.2020,Children's Services,Children's Services,TESCO STORES 5927,1.55,0,1.55,General Provisions (Food),Grocery stores
Buckinghamshire Council,30.11.2020,03.11.2020,Communities,Farnham Park,WEXHAM MOWER SVCS,83.04,0,83.04,Seeds & Plants,Lawn & garden supply/nursery
Buckinghamshire Council,30.11.2020,03.11.2020,"Planning, Growth & Sustainability",Planning Growth & Sustainability,WWW.TOOLSTATION.COM,32.76,0,32.76,Materials,Hardware stores
Buckinghamshire Council,30.11.2020,03.11.2020,Deputy Chief Executive,Deputy Chief Executive,AMAZON.CO.UK,26.1,0,26.1,Stationery & Office Supplies,Direct sales companies
Buckinghamshire Council,30.11.2020,03.11.2020,Children's Services,Children's Services,AMZ,-3.99,0,-3.99,"Books, Records, Films & Oth Publications",Direct sales companies
Buckinghamshire Council,30.11.2020,03.11.2020,"Planning, Growth & Sustainability","Planning, Growth & Sustainability",WWW.CPAG.ORG.UK,183,0,183,Training - Central 100%,Charitable organisations
Buckinghamshire Council,30.11.2020,03.11.2020,Communities,Communities,AMAZON PRIME,79,0,79,Stationery & Office Supplies,Continuous subscriptions
Buckinghamshire Council,30.11.2020,03.11.2020,Communities,Communities,AMAZON PRIME AMZN.CO.UK/P,-6.65,-1.33,-7.98,Stationery & Office Supplies,Continuous subscriptions
Buckinghamshire Council,30.11.2020,03.11.2020,Communities,Communities,AMAZON PRIME AMZN.CO.UK/P,-0.01,0,-0.01,Stationery & Office Supplies,Continuous subscriptions
Buckinghamshire Council,30.11.2020,03.11.2020,Communities,Communities,LAND REGISTRY,3,0,3,Environmental Projects,Government services
Buckinghamshire Council,30.11.2020,03.11.2020,Communities,Communities,LAND REGISTRY,3,0,3,Environmental Projects,Government services
Buckinghamshire Council,30.11.2020,03.11.2020,Communities,Partnerships - Communities,ROCOCO LOUNGE,32.75,0,32.75,Miscellaneous (Other)  Expenses,"Bars, taverns, pubs & nightclubs"
Buckinghamshire Council,30.11.2020,02.11.2020,"Planning, Growth & Sustainability","Planning, Growth & Sustainability",HTTP://WWW.HIVIZWORKWE,"1,018.80",0,"1,018.80",Protective Clothing & Uniforms,Miscellaneous retail
Buckinghamshire Council,30.11.2020,02.11.2020,Resources,Resources,LAND REGISTRY,3,0,3,Land Registry Fees,Government services
Buckinghamshire Council,30.11.2020,02.11.2020,Resources,Resources,LAND REGISTRY,3,0,3,Land Registry Fees,Government services
Buckinghamshire Council,30.11.2020,02.11.2020,Resources,Resources,LAND REGISTRY,3,0,3,Land Registry Fees,Government services
Buckinghamshire Council,30.11.2020,02.11.2020,Resources,Resources,LAND REGISTRY,3,0,3,Land Registry Fees,Government services
Buckinghamshire Council,30.11.2020,02.11.2020,Communities,Communities,DVLA VEHICLE TAX,152.5,0,152.5,Repair & Maint of Vehicles & Plant,Tax payments
Buckinghamshire Council,30.11.2020,02.11.2020,Communities,Communities,DVLA VEHICLE TAX,167.5,0,167.5,Repair & Maint of Vehicles & Plant,Tax payments
Buckinghamshire Council,30.11.2020,02.11.2020,Children's Services,Children's Services,TAXIPAY TAXI FARE,27,0,27,Staff Travelling Expenses,Taxicabs & limousines
Buckinghamshire Council,30.11.2020,02.11.2020,Children's Services,Children's Services,THE TAXI PEOPLE,67.2,0,67.2,Court Orders Sec 31: Miscellaneous,Taxicabs & limousines
Buckinghamshire Council,30.11.2020,02.11.2020,Children's Services,Children's Services,THE TAXI PEOPLE,67.2,0,67.2,Court Orders Sec 31: Miscellaneous,Taxicabs & limousines
Buckinghamshire Council,30.11.2020,02.11.2020,Children's Services,Children's Services,THE TAXI PEOPLE,67.2,0,67.2,Court Orders Sec 31: Miscellaneous,Taxicabs & limousines
Buckinghamshire Council,30.11.2020,02.11.2020,Adults and Health,"Adults, Health and Housing",THE RANGE,3.99,0,3.99,Printing & stationery internal receipts,Department stores
Buckinghamshire Council,30.11.2020,02.11.2020,Resources,Resources,THE SPONTANEITY SHOP,150,0,150,Computer Support Services,"Programming, data processing & system design"
Buckinghamshire Council,30.11.2020,02.11.2020,Communities,Communities,THE GOOD HEALTH PRACTI,70,0,70,Medical Supplies & Services inc Vet'nary,Doctors
Buckinghamshire Council,30.11.2020,02.11.2020,Children's Services,Children's Services,NEXT RETAIL LTD,76,0,76,Cleaning & Domestic Equipment,Family clothing shops
Buckinghamshire Council,30.11.2020,02.11.2020,Communities,Communities,DVLA VEHICLE TAX,148.25,0,148.25,Awaiting Coding,Tax payments
Buckinghamshire Council,30.11.2020,02.11.2020,Communities,Communities,DVLA VEHICLE TAX,152.5,0,152.5,Awaiting Coding,Tax payments
Buckinghamshire Council,30.11.2020,02.11.2020,Communities,Communities,DVLA VEHICLE TAX,152.5,0,152.5,Awaiting Coding,Tax payments
Buckinghamshire Council,30.11.2020,02.11.2020,Communities,Communities,DVLA VEHICLE TAX,152.5,0,152.5,Repair & Maint of Vehicles & Plant,Tax payments
Buckinghamshire Council,30.11.2020,02.11.2020,Communities,Communities,DVLA VEHICLE TAX,152.5,0,152.5,Repair & Maint of Vehicles & Plant,Tax payments
Buckinghamshire Council,30.11.2020,02.11.2020,Resources,Resources,FASTHOSTS INTERNET,73.2,0,73.2,Computer Software Licences & Purchase,Computer network information services
Buckinghamshire Council,30.11.2020,02.11.2020,Children's Services,Children's Services,TESCO STORES 2041,5.09,0,5.09,General Provisions (Food),Grocery stores
Buckinghamshire Council,30.11.2020,02.11.2020,Children's Services,Children's Services,TRAVELODGE GB0000,338.56,0,338.56,Sec 17: Financial Assistance,Travelodge
Buckinghamshire Council,30.11.2020,02.11.2020,"Planning, Growth & Sustainability","Planning, Growth & Sustainability",DOMESTIC & GENERAL,68.28,0,68.28,LKD Other Professional & Consultancy Fees,"Insurance sales, underwritering, premiums"
Buckinghamshire Council,30.11.2020,02.11.2020,Children's Services,Children's Services,AMZNMKTPLACE,45.93,0,45.93,Leaving Care-Grants for Care Leavers,Miscellaneous retail
Buckinghamshire Council,30.11.2020,02.11.2020,Children's Services,Children's Services,B&M 426 - HS AYLESBURY,64.44,0,64.44,Awaiting Coding,Misc. general merchandise
Buckinghamshire Council,30.11.2020,02.11.2020,Children's Services,Children's Services,B&M 426 - HS AYLESBURY,24.98,0,24.98,Awaiting Coding,Misc. general merchandise
Buckinghamshire Council,30.11.2020,02.11.2020,Children's Services,Children's Services,WICKES AYLESBURY,11,0,11,General Repairs & Maintenance,Timber & building supplies
Buckinghamshire Council,30.11.2020,02.11.2020,Children's Services,Children's Services,ARGOS LTD,139,0,139,Awaiting Coding,Discount stores
Buckinghamshire Council,30.11.2020,02.11.2020,Deputy Chief Executive,Deputy Chief Executive,GEN REGISTER OFFICE,45.25,0,45.25,Other Supplies & Services,Government services
Buckinghamshire Council,30.11.2020,02.11.2020,Adults and Health,"Adults, Health and Housing",TESCO STORES 5135,46.66,0,46.66,General Provisions (Food),Grocery stores
Buckinghamshire Council,30.11.2020,02.11.2020,Adults and Health,"Adults, Health and Housing",CABCO SLOUGH TAXIS,41,0,41,Staff Travelling Expenses,Transportation services
Buckinghamshire Council,30.11.2020,02.11.2020,Adults and Health,"Adults, Health and Housing",HOLIDAY INN AYLESB,270.83,54.17,325,Staff Travelling Expenses,"Hotels, motels & resorts"
Buckinghamshire Council,30.11.2020,02.11.2020,Communities,Communities,DOMU,119.99,0,119.99,Environmental Projects,Household appliance stores
Buckinghamshire Council,30.11.2020,02.11.2020,Children's Services,Children's Services,PREMIER INN44023785,-8.99,0,-8.99,Staff Travelling Expenses,Premier Inn
Buckinghamshire Council,30.11.2020,01.11.2020,Communities,Communities,GOOGLE,1.61,0,1.61,Computer Software Licences & Purchase,Continuous subscriptions
Buckinghamshire Council,30.11.2020,01.11.2020,Communities,Communities,AMZNMKTPLACE,12.06,2.42,14.48,Events Expenditure,Miscellaneous retail
Buckinghamshire Council,30.11.2020,01.11.2020,Deputy Chief Executive,Deputy Chief Executive,FACEBK *333QPVEE92,27.22,0,27.22,Advertising,Advertising services
Buckinghamshire Council,30.11.2020,01.11.2020,"Planning, Growth & Sustainability","Planning, Growth & Sustainability",TSOHOST,5.99,0,5.99,Stationery & Office Supplies,Continuous subscriptions
